{"text_format":"1","workbook":"xlsx","n_sheets":8,"sheets":["EntradaDatosExplotación","ResultadosTécnicosEconómicos","ResultadosGrupoGestión","ResultadosEconómicosÚltimaExpl","Criterios","Módulo1","Módulo3","Módulo4"],"not_rendered":{"charts":0,"images":0,"macros":1,"external_links":0,"defined_names":80,"comments":1,"pivot_tables":0},"unopened":[{"sheet":"Módulo1","index":5,"reason":"part_missing"},{"sheet":"Módulo3","index":6,"reason":"part_missing"},{"sheet":"Módulo4","index":7,"reason":"part_missing"}],"bounds":{"document_bytes":16777216,"sheet_cells":100000,"rows_first":2000,"rows_last":500,"rows_between":2000,"halvings":0,"cell_chars":16384,"cell_head_chars":4096},"cells_cut":0,"cells_raw":0,"read":"whole","date_system":"1900"}

{"sheet":"EntradaDatosExplotación","index":0,"n_rows":290,"n_cols":27,"rows_kept":290,"cut":false,"hidden":false,"merged":[[0,0,0,13],[14,1,14,4],[14,6,14,7],[66,1,66,15],[67,4,67,8],[68,4,68,8],[26,1,26,6],[25,3,25,4],[25,5,25,6],[34,4,34,5],[34,6,34,7],[62,1,62,6],[16,1,16,3],[13,1,13,2],[25,7,25,8],[33,1,33,7],[17,1,17,3],[22,1,22,3],[15,1,15,3],[18,1,18,3],[24,3,24,4],[24,5,24,6],[25,1,25,2],[19,1,19,3],[108,18,109,19],[108,20,109,22],[123,15,123,17],[106,1,107,22],[29,1,29,2],[29,3,29,4],[29,5,29,6],[47,1,47,3],[108,15,109,16],[49,1,49,3],[50,1,50,3],[100,7,100,8],[42,1,42,3],[53,1,53,15],[80,13,81,13],[80,14,81,14],[95,14,96,14],[95,13,96,13],[36,1,36,3],[40,1,40,3],[109,7,109,9],[108,10,108,12],[109,10,109,12],[108,1,110,1],[287,6,287,9],[278,1,278,3],[279,1,279,3],[204,4,204,5],[251,1,251,4],[252,1,252,2],[255,1,255,4],[273,1,273,3],[261,1,261,3],[273,6,273,9],[274,6,274,9],[275,1,275,3],[204,1,204,2],[280,6,280,9],[266,6,266,9],[250,5,250,6],[245,1,245,3],[246,1,246,3],[247,1,247,3],[227,1,227,4],[253,1,253,2],[256,1,256,5],[289,1,289,3],[262,1,262,3],[263,1,263,3],[264,1,264,3],[287,1,287,3],[288,1,288,3],[284,1,284,3],[285,1,285,3],[286,1,286,3],[280,1,280,3],[281,1,281,3],[282,1,282,3],[265,1,265,3],[266,1,266,3],[268,1,268,3],[269,1,269,3],[283,1,283,3],[277,1,277,3],[274,1,274,3],[276,1,276,3],[267,1,267,3],[270,1,270,3],[271,1,271,3],[272,1,272,3],[192,13,193,13],[178,1,178,13],[179,7,179,13],[159,6,160,6],[159,7,160,7],[168,5,169,5],[176,1,176,4],[168,1,169,1],[168,3,169,3],[168,4,169,4],[179,1,179,6],[192,7,192,10],[192,11,193,11],[168,6,169,6],[168,7,169,7],[168,2,169,2],[159,2,160,2],[159,3,160,3],[159,4,160,4],[159,5,160,5],[168,8,169,9],[180,13,181,13],[159,1,160,1],[167,1,167,4],[290,6,290,9],[285,6,285,9],[286,6,286,9],[288,6,288,9],[289,6,289,9],[262,6,262,9],[263,6,263,9],[264,6,264,9],[265,6,265,9],[271,6,271,9],[283,6,283,9],[284,6,284,9],[277,6,277,9],[278,6,278,9],[279,6,279,9],[268,6,268,9],[267,6,267,9],[282,6,282,9],[275,6,275,9],[276,6,276,10],[269,6,269,9],[270,6,270,9],[272,6,272,9],[281,6,281,9],[248,1,248,3],[260,6,260,9],[261,6,261,9],[258,1,258,12],[259,1,259,3],[260,1,260,3],[259,6,259,9],[227,5,227,6],[180,12,181,12],[192,12,193,12],[180,9,181,9],[180,10,181,10],[180,11,181,11],[180,1,181,1],[180,2,181,2],[180,3,181,3],[180,4,181,4],[180,5,181,5],[180,6,181,6],[180,7,181,7],[203,1,203,5],[226,1,226,6],[180,8,181,8],[253,4,253,6],[158,1,158,7],[177,1,177,4],[157,2,157,9],[41,1,41,3],[44,1,44,3],[48,1,48,3],[34,1,34,3],[35,1,35,3],[37,1,37,3],[38,1,38,3],[39,1,39,3],[67,1,68,1],[79,1,80,1],[93,1,94,1],[108,4,108,6],[109,4,109,6],[108,7,108,9],[125,4,125,6],[67,2,68,3],[67,9,68,10],[79,2,80,3],[79,9,80,10],[93,9,94,10],[43,1,43,3],[108,13,109,14],[124,13,125,14],[143,13,144,14],[93,2,94,3],[108,2,109,3],[124,2,125,3],[143,2,144,3],[124,10,124,12],[125,10,125,12],[143,7,143,9],[143,10,143,12],[144,10,144,12],[124,4,124,6],[124,7,124,9],[125,7,125,9],[144,4,144,6],[143,4,143,6],[144,7,144,9],[87,4,87,7],[88,4,88,7],[89,4,89,7],[20,1,20,3],[24,1,24,2],[24,7,24,8],[45,1,45,3],[46,1,46,3],[28,1,28,7],[10,1,12,1],[10,2,10,5],[11,2,11,5],[12,2,12,5],[240,1,240,4],[244,1,244,7],[97,4,97,7],[98,4,98,7],[99,4,99,7],[90,4,90,7],[91,4,91,7],[92,4,92,7],[74,3,74,7],[75,3,75,7],[76,3,76,6],[77,3,77,7],[78,3,78,7],[96,4,96,7],[76,7,76,8],[82,4,82,7],[83,4,83,7],[84,4,84,7],[85,4,85,7],[86,4,86,7]]}
["Grup de Remugants \"Ramon Trias\". Hoja de entrada de datos de una explotación para el análisis de la gestión técnica y económica"]
[]
[]
[]
[]
[]
[]
[]
[]
[]
[null,"Referencias en la web","http://www.remugants.cat/8/estudio_costes_en_explotaciones_de_vacas_de_leche_ccaa_1999_742997.html"]
[null,null,"http://www.remugants.cat/8/gestion_tecnica_y_economica_753717.html"]
[null,null,"http://www.remugants.cat/8/gestion_economica_en_vacuno_de_leche_1386729.html"]
[null,null,null,{"$f":"NOW()","v":"2022-02-24T19:29:05.990"}]
[null,"Conjunto de datos que podemos modificar. Para el análisis de grupo se deben emplear los mismos",null,null,null,null,"convertidor €/pta"]
[null,"Año",null,null,2021,null,"PTA","€"]
[null,"Renta referencia",null,null,31502,null,480,{"$f":"G17/166.386","v":2.884858101042155}]
[null,"Interés a aplicar edificios",null,null,5.3933333333333324E-3,null,{"$f":"H18*166.386","v":54.907380000000003},0.33]
[null,"Otros tipos de interés general",null,null,5.3933333333333324E-3]
[null,"Valor base ternera 21 a 24 meses preñada",null,null,1457.5]
[null,"Valor base vaca de primer parto",null,null,1325]
[]
[null,"Grup de Remugants \"Ramon Trias\"",null,null,null,"AAAAA"]
[]
[null,"Municipio",null,"Comarca",null,"Província",null,"Nombre explotación"]
[null,"B",null,"BB",null,"BBB",null,"dddd"]
[null,"Control lechero oficial (Sí/No)",null,null,null,null,null,"Sí"]
[]
[null,"Régimen tenencia, superficie en ha"]
[null,"Propiedad ",null,"Arrendamiento",null,"Total"]
[null,"Secano","Regadío","Secano","Regadío","Secano","Regadío","Total"]
[null,50,25,0,null,{"$f":"B32+D32","v":50},{"$f":"C32+E32","v":25},{"$f":"SUM(B32:E32)","v":75}]
[]
[null,"Cultivos, superficie dedicada a leche"]
[null,null,null,null,"Superfície a leche",null,"Rendimiento kg/ha"]
[null,null,null,null,"Secano","Regadío","Secano","Regadío"]
[null,"Forrajes y otros cultivos para vacas de leche",null,null,{"$f":"SUM(E38:E46)","v":50},{"$f":"SUM(F38:F46)","v":25}]
[null,"Alfalfa",null,null,null,10]
[null,"Raigrás/maíz",null,null,null,15]
[null,"Avena",null,null,25,null,null,null,null,{"$f":"IF(F40>D40,\"Error: superfície regadiu a llet no pot ser superior a la total\",\"\")","v":""}]
[null,"Sorgo",null,null,25]
[]
[]
[]
[]
[null,null,null,null,null,null,null,null,null,{"$f":"IF(F46>D46,\"Error: superfície regadiu a llet no pot ser superior a la total\",\"\")","v":""}]
[null,null,null,null,null,null,null,null,null,{"$f":"IF(F47>D47,\"Error: superfície regadiu a llet no pot ser superior a la total\",\"\")","v":""}]
[null,null,null,null,null,null,null,null,null,{"$f":"IF(F48>D48,\"Error: superfície regadiu a llet no pot ser superior a la total\",\"\")","v":""}]
[null,null,null,null,null,null,null,null,null,{"$f":"IF(F49>D49,\"Error: superfície regadiu a llet no pot ser superior a la total\",\"\")","v":""}]
[null,null,null,null,null,null,null,null,null,{"$f":"IF(F50>D50,\"Error: superfície regadiu a llet no pot ser superior a la total\",\"\")","v":""}]
[null,"Superfície a leche",null,null,{"$f":"E37","v":50},{"$f":"F37","v":25},{"$f":"E51+F51","v":75}]
[null,null,null,null,{"$f":"IF(E51>F32,\"Revisar supefície secà\",\"\")","v":""},{"$f":"IF(F51>G32,\"Revisar supefície regadiu\",\"\")","v":""}]
[]
[null,"Gastos parcelas cultivos para leche, €"]
[null,"Tipos de gastos",{"$f":"IF($B38=\"\",\"\",$B38)","v":"Alfalfa"},{"$f":"IF($B39=\"\",\"\",$B39)","v":"Raigrás/maíz"},{"$f":"IF($B40=\"\",\"\",$B40)","v":"Avena"},{"$f":"IF(B41=\"\",\"\",B41)","v":"Sorgo"},{"$f":"IF(B42=\"\",\"\",B42)","v":""},{"$f":"IF($B43=\"\",\"\",$B43)","v":""},{"$f":"IF($B44=\"\",\"\",$B44)","v":""},{"$f":"IF($B45=\"\",\"\",$B45)","v":""},{"$f":"IF($B46=\"\",\"\",$B46)","v":""},{"$f":"IF($B47=\"\",\"\",$B48)","v":""},{"$f":"IF($B49=\"\",\"\",$B49)","v":""},{"$f":"IF($B50=\"\",\"\",$B50)","v":""},"Si sólo tenemos el total de gastos de cada partida","Total"]
[null,"Semillas",null,null,null,null,null,null,null,null,null,null,null,null,4000,{"$f":"IF(O56=\"\",SUM(C56:G56),O56)","v":4000}]
[null,"Abonos",null,null,null,null,null,null,null,null,null,null,null,null,3200,{"$f":"IF(O57=\"\",SUM(C57:G57),O57)","v":3200}]
[null,"Tratamientos",null,null,null,null,null,null,null,null,null,null,null,null,2100,2100]
[null,"Plásticos y conservantes",null,null,null,null,null,null,null,null,null,null,null,null,1321,1321]
[null,"Otros (agua riego, etc.)",null,null,null,null,null,null,null,null,null,null,null,null,2000,2000]
[null,"Total",{"$f":"SUM(C56:C60)","v":0},{"$f":"SUM(D56:D60)","v":0},{"$f":"SUM(E56:E60)","v":0},{"$f":"SUM(F56:F60)","v":0},{"$f":"SUM(G56:G60)","v":0},{"$f":"SUM(H56:H60)","v":0},0,0,0,0,{"$f":"SUM(M56:M60)","v":0},{"$f":"SUM(N56:N60)","v":0},{"$f":"SUM(O56:O60)","v":12621},12621]
[]
[null,"Precio mercado arrendamientos de tierras en la zona (€/ha)"]
[null,"Tipos","Secano","Regadío"]
[null,"Arrendada",121,270]
[]
[null,"Inventario ganado e incidencias"]
[null,"Vacas presentes","Inventario inicio",null,"Compras, altas, ventas, bajas",null,null,null,null,"Inventario final"]
[null,null,null,null,"Durante todo el año"]
[null,"Nº lactación","Nº vacas","%","Compras","Altas reposición","Ventas (para vida)","Ventas (a matadero)","Bajas por muerte","Nº vacas","%","Media  anual","%","UGM","Capital animal","Valor cambio inventario"]
[null,"1 lactación",38,{"$f":"IF(C74=\"\",\"\",C71/C74)","v":0.34234234234234234},0,25,0,0,0,43,{"$f":"IF(J74=\"\",\"\",J71/J74)","v":0.35537190082644626},{"$f":"(C71+J71)/2","v":40.5},{"$f":"L71/$L$74","v":0.34913793103448276},null,{"$f":"L71*Preu_Vaca","v":53662.5},{"$f":"(J71-C71)*Preu_Vaca","v":6625}]
[null,"2 lactación",48,{"$f":"IF(C74=\"\",\"\",C72/C74)","v":0.43243243243243246},0,null,0,0,0,49,{"$f":"IF(J74=\"\",\"\",J72/J74)","v":0.4049586776859504},48.5,{"$f":"L72/$L$74","v":0.41810344827586204},null,{"$f":"L72*Preu_Vaca*0.9","v":57836.25},{"$f":"(J72-C72)*Preu_Vaca*0.9","v":1192.5}]
[null,"3 y más lactación",25,{"$f":"IF(C74=\"\",\"\",C73/C74)","v":0.22522522522522523},0,null,0,16,5,29,{"$f":"IF(J74=\"\",\"\",J73/J74)","v":0.23966942148760331},27,{"$f":"L73/$L$74","v":0.23275862068965517},null,{"$f":"L73*Preu_Vaca*0.55","v":19676.25},{"$f":"(J73-C73)*Preu_Vaca*0.55","v":2915.0000000000005}]
[null,"Totales",{"$f":"SUM(C71:C73)","v":111},1,0,25,0,16,5,121,0.99999999999999989,116,null,{"$f":"L74","v":116},{"$f":"SUM(O71:O73)","v":131175},{"$f":"SUM(P71:P73)","v":10732.5}]
[null,"Vacas secas",8,"________________________________________________________________________________________________________________",null,null,null,null,"Vacas secas",10,null,9,{"$f":"L75/L74","v":7.7586206896551727E-2},null,"Capital aproximación terneras"]
[null,"Terneras < 1 año",{"$f":"SUM(C83:C86)","v":42},"________________________________________________________________________________________________________________",null,null,null,null,"Terneras < 1 año",{"$f":"SUM(J83:J86)","v":37},null,39.5,null,null,{"$f":"L76*Preu_vedella*0.3625","v":20869.578125},{"$f":"(J76-C76)*Preu_vedella*0.3625","v":-2641.71875}]
[null,"Terneras > 1 año no preñadas",10,"_________________________________________________________________________________________________",null,null,null,"Terneras > 1 año no preñadas",null,6,null,8,null,null,{"$f":"(L77+L78)*Preu_vedella*0.7638","v":47312.636250000003},{"$f":"(J77-C77+J78-C78)*Preu_vedella*0.7638","v":-7792.6695}]
[null,"Terneras preñadas",{"$f":"C93-C76-C77","v":36},"________________________________________________________________________________________________________________",null,null,null,null,"Terneras preñadas",{"$f":"J93-J76-J77","v":33},null,34.5,null,null,{"$f":"SUM(O76:O77)","v":68182.21437500001}]
[null,"Total terneras",{"$f":"SUM(C76:C78)","v":88},"________________________________________________________________________________________________________________",null,null,null,null,"Total terneras",{"$f":"SUM(J76:J78)","v":76},null,82]
[null,"Terneras de recría","Inventario inicio",null,null,null,null,null,null,"Inventario final"]
[null,null,null,null,null,null,null,null,null,null,null,null,null,"Capital animal","Valor cambio inventario"]
[null,"Edad","Nº terneras","%",null,null,null,null,"Edad","Nº terneras","%","Media","UGM"]
[null,"0 a 3 meses",10,{"$f":"IF(C93=\"\",\"\",C83/C93)","v":0.11363636363636363},"___________________________________________________________________________________________________",null,null,null,"0 a 3 meses",10,{"$f":"IF(J93=\"\",\"\",J83/J93)","v":0.13157894736842105},{"$f":"(C83+J83)/2","v":10},{"$f":"L83*0.4","v":4},{"$f":"L83*Preu_vedella*0.2","v":2915},{"$f":"(J83-C83)*Preu_vedella*0.2","v":0}]
[null,"3 a 6 meses",15,{"$f":"IF(C93=\"\",\"\",C84/C93)","v":0.17045454545454544},"___________________________________________________________________________________________________",null,null,null,"3 a 6 meses",12,{"$f":"IF(J93=\"\",\"\",J84/J93)","v":0.15789473684210525},13.5,{"$f":"L84*0.4","v":5.4},{"$f":"L84*Preu_vedella*0.33","v":6493.1625000000004},{"$f":"(J84-C84)*Preu_vedella*0.33","v":-1442.925}]
[null,"6 a 9 meses",6,{"$f":"IF(C93=\"\",\"\",C85/C93)","v":6.8181818181818177E-2},"___________________________________________________________________________________________________",null,null,null,"6 a 9 meses",9,{"$f":"IF(J93=\"\",\"\",J85/J93)","v":0.11842105263157894},7.5,{"$f":"L85*0.6","v":4.5},{"$f":"L85*Preu_vedella*0.42","v":4591.125},{"$f":"M85*Preu_vedella*0.42","v":2754.6749999999997}]
[null,"9 a 12 meses",11,{"$f":"IF(C93=\"\",\"\",C86/C93)","v":0.125},"___________________________________________________________________________________________________",null,null,null,"9 a 12 meses",6,{"$f":"IF(J93=\"\",\"\",J86/J93)","v":7.8947368421052627E-2},8.5,5.0999999999999996,{"$f":"L86*Preu_vedella*0.5","v":6194.375},{"$f":"(J86-C86)*Preu_vedella*0.5","v":-3643.75}]
[null,"12 a 15 meses",13,{"$f":"IF(C93=\"\",\"\",C87/C93)","v":0.14772727272727273},"___________________________________________________________________________________________________",null,null,null,"12 a 15 meses",15,{"$f":"IF(J93=\"\",\"\",J87/J93)","v":0.19736842105263158},14,8.4,{"$f":"L87*Preu_vedella*0.67","v":13671.35},{"$f":"(J87-C87)*Preu_vedella*0.67","v":1953.0500000000002}]
[null,"15 a 18 meses",15,{"$f":"IF(C93=\"\",\"\",C88/C93)","v":0.17045454545454544},"___________________________________________________________________________________________________",null,null,null,"15 a 18 meses",12,{"$f":"IF(J93=\"\",\"\",J88/J93)","v":0.15789473684210525},13.5,8.1,{"$f":"L88*Preu_vedella*0.83","v":16331.287499999999},{"$f":"(J88-C88)*Preu_vedella*0.83","v":-3629.1749999999997}]
[null,"18 a 21 meses",6,{"$f":"IF(C93=\"\",\"\",C89/C93)","v":6.8181818181818177E-2},"___________________________________________________________________________________________________",null,null,null,"18 a 21 meses",6,{"$f":"IF(J93=\"\",\"\",J89/J93)","v":7.8947368421052627E-2},6,3.5999999999999996,{"$f":"L89*Preu_vedella*0.83","v":7258.3499999999995},{"$f":"(J89-C89)*Preu_vedella*0.83","v":0}]
[null,"21 a 24 meses",5,{"$f":"IF(C93=\"\",\"\",C90/C93)","v":5.6818181818181816E-2},"___________________________________________________________________________________________________",null,null,null,"21 a 24 meses",3,{"$f":"IF(J93=\"\",\"\",J90/J93)","v":3.9473684210526314E-2},4,2.4,{"$f":"L90*Preu_vedella","v":5830},{"$f":"(J90-C90)*Preu_vedella","v":-2915}]
[null,"24 a 27 meses",7,{"$f":"IF(C93=\"\",\"\",C91/C93)","v":7.9545454545454544E-2},"___________________________________________________________________________________________________",null,null,null,"24 a 27 meses",2,{"$f":"IF(J93=\"\",\"\",J91/J93)","v":2.6315789473684209E-2},4.5,{"$f":"L91","v":4.5},{"$f":"L91*Preu_vedella*0.83","v":5443.7624999999998},{"$f":"(J91-C91)*Preu_vedella*0.83","v":-6048.625}]
[null,">27 meses",0,{"$f":"IF(C93=\"\",\"\",C92/C93)","v":0},"___________________________________________________________________________________________________",null,null,null,">27 meses",1,{"$f":"IF(J93=\"\",\"\",J92/J93)","v":1.3157894736842105E-2},0.5,{"$f":"L92","v":0.5},{"$f":"L92*Preu_vedella*0.67","v":488.26250000000005},{"$f":"(J92-C92)*Preu_vedella*0.67","v":976.52500000000009}]
[null,"Total terneras",{"$f":"SUM(C83:C92)","v":88},{"$f":"SUM(D83:D92)","v":0.99999999999999989},"___________________________________________________________________________________________________",null,null,null,"Total terneras",{"$f":"SUM(J83:J92)","v":76},{"$f":"SUM(K83:K92)","v":1},82,{"$f":"SUM(M83:M92)","v":46.5},{"$f":"SUM(N83:N92)","v":69216.674999999988},{"$f":"SUM(O83:O92)","v":-11995.225}]
[null,"Sementales","Inventario inicio",null,null,null,null,null,null,"Inventario final"]
[]
[null,"Edad","Nº toros","%",null,null,null,null,"Edad","Nº toros","%","Media","UGM","Capital animal","Valor cambio inventario"]
[null,"<2 años",0,{"$f":"IF(C100=0,0,C97/C100)","v":0},"____________________________________________________________________________________________________",null,null,null,"<2 años",0,{"$f":"IF($J$100=0,0,J97/$J$100)","v":0},{"$f":"(C97+J97)/2","v":0},{"$f":"L97*0.6","v":0}]
[null,"2 a 5 años",1,{"$f":"IF(C100=0,0,C98/C100)","v":1},"____________________________________________________________________________________________________",null,null,null,"2 a 5 años",1,{"$f":"IF($J$100=0,0,J98/$J$100)","v":1},{"$f":"(C98+J98)/2","v":1},{"$f":"L98*1","v":1}]
[null,">5 años",0,{"$f":"IF(C100=0,0,C99/C100)","v":0},"____________________________________________________________________________________________________",null,null,null,">5 años",0,{"$f":"IF($J$100=0,0,J99/$J$100)","v":0},{"$f":"(C99+J99)/2","v":0},{"$f":"L99*1","v":0}]
[null,"Total",{"$f":"SUM(C97:C99)","v":1},{"$f":"SUM(D97:D99)","v":1},"____________________________________________________________________________________________________",null,null,null,"Total",{"$f":"SUM(J97:J99)","v":1},{"$f":"SUM(K97:K99)","v":1},{"$f":"(C100+J100)/2","v":1},{"$f":"SUM(M97:M99)","v":1},{"$f":"M100*Preu_Vaca","v":1325},{"$f":"(J100-C100)*Preu_Vaca","v":0}]
[null,null,null,null,"% reposición",null,"% eliminación","Tendencia"]
[null,"Número medio de vacas",{"$f":"(J74+C74)/2","v":116},null,{"$f":"(E74+F74)/C102","v":0.21551724137931033},null,{"$f":"(G74+H74+I74)/C102","v":0.18103448275862069},{"$f":"IF((E102-G102)>0,\"Crecimiento\",\"Decrecimiento\")","v":"Crecimiento"},{"$f":"(J74-C74)/C74","v":9.0090090090090086E-2}]
[]
[]
[]
[]
[null,"Consum d'ingredients per a l'alimentació"]
[]
[null,"Forrajes","Inventario inicio",null,"Compras",null,null,"Ventas",null,null,"Producción",null,null,"Inventario final",null,"Consumo",null,null,"Inventario",null,"Precios"]
[null,null,null,null,"Durante todo el año",null,null,"Durante todo el año",null,null,"Durante todo el año"]
[null,null,"Cantidad, kg","% MS","Compras, cantidad en kg","% MS","Importe compras","Ventas, cantidad en kg","% MS","Importe ventas","Producción en kg","% MS","Coste de producción","Cantidad, kg","% MS","Consumo, kg","% MS",null,"Variación inventario","% MS","Precio compras","Precio ventas","Precio medio"]
[null,"Ensilado sorgo",90000,0.3,null,null,null,null,null,null,500000,0.3,2.4E-2,405000,0.3,{"$f":"IF(B112=\"\",\"\",IF((C112+E112-H112+K112-N112)<0,\"Revisar dades\",C112+E112-H112+K112-N112))","v":185000},{"$f":"IF(P112=\"\",\"\",IF(COUNT(C112,E112,H112,K112,N112)=COUNT(D112,F112,I112,L112,O112),(C112*D112+E112*F112+H112*I112+K112*L112+N112*O112)/(C112+E112+H112+K112+N112),\"\"))","v":0.3},{"$f":"IF(P112=\"\",\"\",IF(Q112=\"\",\"% MS?\",\"\"))","v":""},{"$f":"IF(B112=\"\",\"\",N112-C112)","v":315000},{"$f":"IF(S112=0,\"\",IF(S112=\"\",\"\",(C112*D112+N112*O112)/(C112+N112)))","v":0.3},{"$f":"IF(G112=\"\",\"\",G112/E112)","v":""},{"$f":"IF(H112=\"\",\"\",J112/H112)","v":""},{"$f":"IF(B112=\"\",\"\",SUM(Y112:AA112))","v":2.4E-2},{"$f":"E112+H112+K112","v":500000},{"$f":"IF(U112=\"\",\"\",U112*(E112/X112))","v":""},{"$f":"IF(V112=\"\",\"\",V112*(H112/(X112)))","v":""},{"$f":"IF(M112=\"\",\"\",M112*(K112/(X112)))","v":2.4E-2}]
[null,"Heno raigrás",120000,0.28000000000000003,null,null,null,null,null,null,500000,0.28000000000000003,0.03,120000,0.28000000000000003,{"$f":"IF(B113=\"\",\"\",IF((C113+E113-H113+K113-N113)<0,\"Revisar dades\",C113+E113-H113+K113-N113))","v":500000},{"$f":"IF(P113=\"\",\"\",IF(COUNT(C113,E113,H113,K113,N113)=COUNT(D113,F113,I113,L113,O113),(C113*D113+E113*F113+H113*I113+K113*L113+N113*O113)/(C113+E113+H113+K113+N113),\"\"))","v":0.28000000000000003},{"$f":"IF(P113=\"\",\"\",IF(Q113=\"\",\"% MS?\",\"\"))","v":""},{"$f":"IF(B113=\"\",\"\",N113-C113)","v":0},{"$f":"IF(S113=0,\"\",IF(S113=\"\",\"\",(C113*D113+N113*O113)/(C113+N113)))","v":""},{"$f":"IF(G113=\"\",\"\",G113/E113)","v":""},{"$f":"IF(H113=\"\",\"\",J113/H113)","v":""},{"$f":"IF(B113=\"\",\"\",SUM(Y113:AA113))","v":0.03},500000,"","",0.03]
[null,"Ensilado raigrás",null,null,null,null,null,null,null,null,80000,0.88,0.1,67800,0.88,12200,0.88,"",67800,0.88,"","",0.1,80000,"","",0.1]
[null,"Avena en flor, heno",26400,0.88,null,null,null,null,null,null,90000,0.88,0.12,71550,0.88,44850,0.88,"",45150,0.88,"","",0.12,90000,"","",0.12]
[null,"Heno de alfalfa",67400,0.88,null,null,null,null,null,null,100000,0.88,0.1,97200,0.88,70200,0.88,"",29800,0.88,"","",0.1,100000,"","",0.1]
[null,null,null,null,null,null,null,null,null,null,null,null,null,null,null,"","","","","","","","",0,"","",""]
[null,null,null,null,null,null,null,null,null,null,null,null,null,null,null,"","","","","","","","",0,"","",""]
[null,null,null,null,null,null,null,null,null,null,null,null,null,null,null,{"$f":"IF(B119=\"\",\"\",IF((C119+E119-H119+K119-N119)<0,\"Revisar dades\",C119+E119-H119+K119-N119))","v":""},{"$f":"IF(P119=\"\",\"\",IF(COUNT(C119,E119,H119,K119,N119)=COUNT(D119,F119,I119,L119,O119),(C119*D119+E119*F119+H119*I119+K119*L119+N119*O119)/(C119+E119+H119+K119+N119),\"\"))","v":""},{"$f":"IF(P119=\"\",\"\",IF(Q119=\"\",\"% MS?\",\"\"))","v":""},{"$f":"IF(B119=\"\",\"\",N119-C119)","v":""},{"$f":"IF(S119=0,\"\",IF(S119=\"\",\"\",(C119*D119+N119*O119)/(C119+N119)))","v":""},{"$f":"IF(G119=\"\",\"\",G119/E119)","v":""},{"$f":"IF(H119=\"\",\"\",J119/H119)","v":""},{"$f":"IF(B119=\"\",\"\",SUM(Y119:AA119))","v":""},{"$f":"E119+H119+K119","v":0},{"$f":"IF(U119=\"\",\"\",U119*(E119/X119))","v":""},{"$f":"IF(V119=\"\",\"\",V119*(H119/(X119)))","v":""},{"$f":"IF(M119=\"\",\"\",M119*(K119/(X119)))","v":""}]
[null,null,null,null,null,null,null,null,null,null,null,null,null,null,null,{"$f":"IF(B120=\"\",\"\",IF((C120+E120-H120+K120-N120)<0,\"Revisar dades\",C120+E120-H120+K120-N120))","v":""},{"$f":"IF(P120=\"\",\"\",IF(COUNT(C120,E120,H120,K120,N120)=COUNT(D120,F120,I120,L120,O120),(C120*D120+E120*F120+H120*I120+K120*L120+N120*O120)/(C120+E120+H120+K120+N120),\"\"))","v":""},{"$f":"IF(P120=\"\",\"\",IF(Q120=\"\",\"% MS?\",\"\"))","v":""},{"$f":"IF(B120=\"\",\"\",N120-C120)","v":""},{"$f":"IF(S120=0,\"\",IF(S120=\"\",\"\",(C120*D120+N120*O120)/(C120+N120)))","v":""},{"$f":"IF(G120=\"\",\"\",G120/E120)","v":""},{"$f":"IF(H120=\"\",\"\",J120/H120)","v":""},{"$f":"IF(B120=\"\",\"\",SUM(Y120:AA120))","v":""},{"$f":"E120+H120+K120","v":0},{"$f":"IF(U120=\"\",\"\",U120*(E120/X120))","v":""},{"$f":"IF(V120=\"\",\"\",V120*(H120/(X120)))","v":""},{"$f":"IF(M120=\"\",\"\",M120*(K120/(X120)))","v":""}]
[null,null,null,null,null,null,null,null,null,null,null,null,null,null,null,{"$f":"IF(B121=\"\",\"\",IF((C121+E121-H121+K121-N121)<0,\"Revisar dades\",C121+E121-H121+K121-N121))","v":""},{"$f":"IF(P121=\"\",\"\",IF(COUNT(C121,E121,H121,K121,N121)=COUNT(D121,F121,I121,L121,O121),(C121*D121+E121*F121+H121*I121+K121*L121+N121*O121)/(C121+E121+H121+K121+N121),\"\"))","v":""},{"$f":"IF(P121=\"\",\"\",IF(Q121=\"\",\"% MS?\",\"\"))","v":""},{"$f":"IF(B121=\"\",\"\",N121-C121)","v":""},{"$f":"IF(S121=0,\"\",IF(S121=\"\",\"\",(C121*D121+N121*O121)/(C121+N121)))","v":""},{"$f":"IF(G121=\"\",\"\",G121/E121)","v":""},{"$f":"IF(H121=\"\",\"\",J121/H121)","v":""},{"$f":"IF(B121=\"\",\"\",SUM(Y121:AA121))","v":""},{"$f":"E121+H121+K121","v":0},{"$f":"IF(U121=\"\",\"\",U121*(E121/X121))","v":""},{"$f":"IF(V121=\"\",\"\",V121*(H121/(X121)))","v":""},{"$f":"IF(M121=\"\",\"\",M121*(K121/(X121)))","v":""}]
[null,null,null,null,null,null,null,null,null,null,null,null,null,null,null,{"$f":"IF(B122=\"\",\"\",IF((C122+E122-H122+K122-N122)<0,\"Revisar dades\",C122+E122-H122+K122-N122))","v":""},{"$f":"IF(P122=\"\",\"\",IF(COUNT(C122,E122,H122,K122,N122)=COUNT(D122,F122,I122,L122,O122),(C122*D122+E122*F122+H122*I122+K122*L122+N122*O122)/(C122+E122+H122+K122+N122),\"\"))","v":""},{"$f":"IF(P122=\"\",\"\",IF(Q122=\"\",\"% MS?\",\"\"))","v":""},{"$f":"IF(B122=\"\",\"\",N122-C122)","v":""},{"$f":"IF(S122=0,\"\",IF(S122=\"\",\"\",(C122*D122+N122*O122)/(C122+N122)))","v":""},{"$f":"IF(G122=\"\",\"\",G122/E122)","v":""},{"$f":"IF(H122=\"\",\"\",J122/H122)","v":""},{"$f":"IF(B122=\"\",\"\",SUM(Y122:AA122))","v":""},{"$f":"E122+H122+K122","v":0},{"$f":"IF(U122=\"\",\"\",U122*(E122/X122))","v":""},{"$f":"IF(V122=\"\",\"\",V122*(H122/(X122)))","v":""},{"$f":"IF(M122=\"\",\"\",M122*(K122/(X122)))","v":""}]
[null,null,null,null,null,null,null,null,null,null,null,null,null,null,null,{"$f":"IF(B123=\"\",\"\",IF((C123+E123-H123+K123-N123)<0,\"Revisar dades\",C123+E123-H123+K123-N123))","v":""},{"$f":"IF(P123=\"\",\"\",IF(COUNT(C123,E123,H123,K123,N123)=COUNT(D123,F123,I123,L123,O123),(C123*D123+E123*F123+H123*I123+K123*L123+N123*O123)/(C123+E123+H123+K123+N123),\"\"))","v":""},{"$f":"IF(P123=\"\",\"\",IF(Q123=\"\",\"% MS?\",\"\"))","v":""},{"$f":"IF(B123=\"\",\"\",N123-C123)","v":""},{"$f":"IF(S123=0,\"\",IF(S123=\"\",\"\",(C123*D123+N123*O123)/(C123+N123)))","v":""},{"$f":"IF(G123=\"\",\"\",G123/E123)","v":""},{"$f":"IF(H123=\"\",\"\",J123/H123)","v":""},{"$f":"IF(B123=\"\",\"\",SUM(Y123:AA123))","v":""},{"$f":"E123+H123+K123","v":0},{"$f":"IF(U123=\"\",\"\",U123*(E123/X123))","v":""},{"$f":"IF(V123=\"\",\"\",V123*(H123/(X123)))","v":""},{"$f":"IF(M123=\"\",\"\",M123*(K123/(X123)))","v":""}]
[null,null,null,null,null,"Total compras",{"$f":"SUM(G112:G123)","v":0},null,"Total ventas",{"$f":"SUM(J112:J123)","v":0},null,null,null,null,null,"Total valor variación inventario",null,null,{"$f":"SUMPRODUCT(S112:S123,W112:W123)","v":22738}]
[null,null,"Inventario inicio",null,"Compras",null,null,"Ventas",null,null,"Producción",null,null,"Inventario final"]
[null,null,null,null,"Durante todo el año",null,null,"Durante todo el año",null,null,"Durante todo el año"]
[null,"Concentrados, subproductos y aditivos, a vacas","Cantidad, kg","% MS","Compras, cantidad en kg","% MS","Importe compras","Ventas, cantidad en kg","% MS","Importe ventas","Producción en kg","% MS","Coste de producción","Cantidad, kg","% MS","Consumo, kg","% MS",null,"Variación inventario","% MS","Precio compras","Precio ventas","Precio medio"]
[null,"Total",45,0.88,524584.6,0.88,152821.80000000002,null,null,null,null,null,null,null,null,{"$f":"IF(B128=\"\",\"\",IF((C128+E128-H128+K128-N128)<0,\"Revisar dades\",C128+E128-H128+K128-N128))","v":524629.6},{"$f":"IF(P128=\"\",\"\",IF(COUNT(C128,E128,H128,K128,N128)=COUNT(D128,F128,I128,L128,O128),(C128*D128+E128*F128+H128*I128+K128*L128+N128*O128)/(C128+E128+H128+K128+N128),\"\"))","v":0.87999999999999989},{"$f":"IF(P128=\"\",\"\",IF(Q128=\"\",\"% MS?\",\"\"))","v":""},{"$f":"IF(B128=\"\",\"\",N128-C128)","v":-45},{"$f":"IF(S128=0,\"\",IF(S128=\"\",\"\",(C128*D128+N128*O128)/(C128+N128)))","v":0.88},{"$f":"IF(G128=\"\",\"\",G128/E128)","v":0.29131964605899607},{"$f":"IF(H128=\"\",\"\",J128/H128)","v":""},{"$f":"IF(B128=\"\",\"\",SUM(Y128:AA128))","v":0.29131964605899607},{"$f":"E128+H128+K128","v":524584.6},{"$f":"IF(U128=\"\",\"\",U128*(E128/X128))","v":0.29131964605899607},{"$f":"IF(V128=\"\",\"\",V128*(H128/(X128)))","v":""},{"$f":"IF(M128=\"\",\"\",M128*(K128/(X128)))","v":""}]
[null,null,null,null,null,null,null,null,null,null,null,null,null,null,null,{"$f":"IF(B129=\"\",\"\",IF((C129+E129-H129+K129-N129)<0,\"Revisar dades\",C129+E129-H129+K129-N129))","v":""},{"$f":"IF(P129=\"\",\"\",IF(COUNT(C129,E129,H129,K129,N129)=COUNT(D129,F129,I129,L129,O129),(C129*D129+E129*F129+H129*I129+K129*L129+N129*O129)/(C129+E129+H129+K129+N129),\"\"))","v":""},{"$f":"IF(P129=\"\",\"\",IF(Q129=\"\",\"% MS?\",\"\"))","v":""},{"$f":"IF(B129=\"\",\"\",N129-C129)","v":""},"",{"$f":"IF(G129=\"\",\"\",G129/E129)","v":""},{"$f":"IF(H129=\"\",\"\",J129/H129)","v":""},{"$f":"IF(B129=\"\",\"\",SUM(Y129:AA129))","v":""},{"$f":"E129+H129+K129","v":0},{"$f":"IF(U129=\"\",\"\",U129*(E129/X129))","v":""},{"$f":"IF(V129=\"\",\"\",V129*(H129/(X129)))","v":""},{"$f":"IF(M129=\"\",\"\",M129*(K129/(X129)))","v":""}]
[null,null,null,null,null,null,null,null,null,null,null,null,null,null,null,"","","","","","","","",0,"","",""]
[null,null,null,null,null,null,null,null,null,null,null,null,null,null,null,"","","","","","","","",0,"","",""]
[null,null,null,null,null,null,null,null,null,null,null,null,null,null,null,"","","","","","","","",0,"","",""]
[null,null,null,null,null,null,null,null,null,null,null,null,null,null,null,"","","","","","","","",0,"","",""]
[null,null,null,null,null,null,null,null,null,null,null,null,null,null,null,"","","","","","","","",0,"","",""]
[null,null,null,null,null,null,null,null,null,null,null,null,null,null,null,"","","","","","","","",0,"","",""]
[null,null,null,null,null,null,null,null,null,null,null,null,null,null,null,"","","","","","","","",0,"","",""]
[null,null,null,null,null,null,null,null,null,null,null,null,null,null,null,"","","","","","","","",0,"","",""]
[null,null,null,null,null,null,null,null,null,null,null,null,null,null,null,"","","","","","","","",0,"","",""]
[null,null,null,null,null,null,null,null,null,null,null,null,null,null,null,"","","","","","","","",0,"","",""]
[null,null,null,null,null,null,null,null,null,null,null,null,null,null,null,"","","","","","","","",0,"","",""]
[null,null,null,null,null,null,null,null,null,null,null,null,null,null,null,"","","","","","","","",0,"","",""]
[null,null,null,null,null,null,null,null,null,null,null,null,null,null,null,"","","","",{"$f":"IF(S142=\"\",\"\",(C142*D142+N142*O142)/(C142+N142))","v":""},"","","",0,"","",""]
[null,null,null,null,null,"Total compras",{"$f":"SUM(G128:G142)","v":152821.80000000002},null,"Total ventas",{"$f":"SUM(J128:J142)","v":0},null,null,null,null,null,{"$f":"SUMPRODUCT(P128:P142,Q128:Q142)","v":461674.04799999995},{"$f":"IF(P143=0,\"\",P143/SUM(P128:P142))","v":0.87999999999999989},"",{"$f":"SUMPRODUCT(S128:S142,W128:W142)","v":-13.109384072654823}]
[null,null,"Inventario inicio",null,"Compras",null,null,"Ventas",null,null,"Producción",null,null,"Inventario final"]
[null,null,null,null,"Durante todo el año",null,null,"Durante todo el año",null,null,"Durante todo el año"]
[null,"Concentrados, subproductos y aditivos, a recría","Cantidad, kg","% MS","Compras, cantidad en kg","% MS","Importe compras","Ventas, cantidad en kg","% MS","Importe ventas","Producción en kg","% MS","Coste de producción","Cantidad, kg","% MS","Consumo, kg (l leche)","% MS",null,"Variación inventario","% MS","Precio compras","Precio ventas","Precio medio"]
[null,null,null,null,null,null,null,null,null,null,null,null,null,null,null,{"$f":"IF(B147=\"\",\"\",IF((C147+E147-H147+K147-N147)<0,\"Revisar dades\",C147+E147-H147+K147-N147))","v":""},{"$f":"IF(P147=\"\",\"\",IF(COUNT(C147,E147,H147,K147,N147)=COUNT(D147,F147,I147,L147,O147),(C147*D147+E147*F147+H147*I147+K147*L147+N147*O147)/(C147+E147+H147+K147+N147),\"\"))","v":""},{"$f":"IF(P147=\"\",\"\",IF(Q147=\"\",\"% MS?\",\"\"))","v":""},{"$f":"IF(B147=\"\",\"\",N147-C147)","v":""},{"$f":"IF(S147=0,\"\",IF(S147=\"\",\"\",(C147*D147+N147*O147)/(C147+N147)))","v":""},{"$f":"IF(G147=\"\",\"\",G147/E147)","v":""},{"$f":"IF(H147=\"\",\"\",J147/H147)","v":""},{"$f":"IF(B147=\"\",\"\",SUM(Y147:AA147))","v":""},{"$f":"E147+H147+K147","v":0},{"$f":"IF(U147=\"\",\"\",U147*(E147/X147))","v":""},{"$f":"IF(V147=\"\",\"\",V147*(H147/(X147)))","v":""},{"$f":"IF(M147=\"\",\"\",M147*(K147/(X147)))","v":""}]
[null,null,null,null,null,null,null,null,null,null,null,null,null,null,null,{"$f":"IF(B148=\"\",\"\",IF((C148+E148-H148+K148-N148)<0,\"Revisar dades\",C148+E148-H148+K148-N148))","v":""},{"$f":"IF(P148=\"\",\"\",IF(COUNT(C148,E148,H148,K148,N148)=COUNT(D148,F148,I148,L148,O148),(C148*D148+E148*F148+H148*I148+K148*L148+N148*O148)/(C148+E148+H148+K148+N148),\"\"))","v":""},{"$f":"IF(P148=\"\",\"\",IF(Q148=\"\",\"% MS?\",\"\"))","v":""},{"$f":"IF(B148=\"\",\"\",N148-C148)","v":""},{"$f":"IF(S148=0,\"\",IF(S148=\"\",\"\",(C148*D148+N148*O148)/(C148+N148)))","v":""},{"$f":"IF(G148=\"\",\"\",G148/E148)","v":""},{"$f":"IF(H148=\"\",\"\",J148/H148)","v":""},{"$f":"IF(B148=\"\",\"\",SUM(Y148:AA148))","v":""},{"$f":"E148+H148+K148","v":0},{"$f":"IF(U148=\"\",\"\",U148*(E148/X148))","v":""},{"$f":"IF(V148=\"\",\"\",V148*(H148/(X148)))","v":""},{"$f":"IF(M148=\"\",\"\",M148*(K148/(X148)))","v":""}]
[null,null,null,null,null,null,null,null,null,null,null,null,null,null,null,{"$f":"IF(B149=\"\",\"\",IF((C149+E149-H149+K149-N149)<0,\"Revisar dades\",C149+E149-H149+K149-N149))","v":""},{"$f":"IF(P149=\"\",\"\",IF(COUNT(C149,E149,H149,K149,N149)=COUNT(D149,F149,I149,L149,O149),(C149*D149+E149*F149+H149*I149+K149*L149+N149*O149)/(C149+E149+H149+K149+N149),\"\"))","v":""},{"$f":"IF(P149=\"\",\"\",IF(Q149=\"\",\"% MS?\",\"\"))","v":""},{"$f":"IF(B149=\"\",\"\",N149-C149)","v":""},{"$f":"IF(S149=0,\"\",IF(S149=\"\",\"\",(C149*D149+N149*O149)/(C149+N149)))","v":""},{"$f":"IF(G149=\"\",\"\",G149/E149)","v":""},{"$f":"IF(H149=\"\",\"\",J149/H149)","v":""},{"$f":"IF(B149=\"\",\"\",SUM(Y149:AA149))","v":""},{"$f":"E149+H149+K149","v":0},{"$f":"IF(U149=\"\",\"\",U149*(E149/X149))","v":""},{"$f":"IF(V149=\"\",\"\",V149*(H149/(X149)))","v":""},{"$f":"IF(M149=\"\",\"\",M149*(K149/(X149)))","v":""}]
[null,null,null,null,null,null,null,null,null,null,null,null,null,null,null,{"$f":"IF(B150=\"\",\"\",IF((C150+E150-H150+K150-N150)<0,\"Revisar dades\",C150+E150-H150+K150-N150))","v":""},{"$f":"IF(P150=\"\",\"\",IF(COUNT(C150,E150,H150,K150,N150)=COUNT(D150,F150,I150,L150,O150),(C150*D150+E150*F150+H150*I150+K150*L150+N150*O150)/(C150+E150+H150+K150+N150),\"\"))","v":""},{"$f":"IF(P150=\"\",\"\",IF(Q150=\"\",\"% MS?\",\"\"))","v":""},{"$f":"IF(B150=\"\",\"\",N150-C150)","v":""},{"$f":"IF(S150=0,\"\",IF(S150=\"\",\"\",(C150*D150+N150*O150)/(C150+N150)))","v":""},{"$f":"IF(G150=\"\",\"\",G150/E150)","v":""},{"$f":"IF(H150=\"\",\"\",J150/H150)","v":""},{"$f":"IF(B150=\"\",\"\",SUM(Y150:AA150))","v":""},{"$f":"E150+H150+K150","v":0},{"$f":"IF(U150=\"\",\"\",U150*(E150/X150))","v":""},{"$f":"IF(V150=\"\",\"\",V150*(H150/(X150)))","v":""},{"$f":"IF(M150=\"\",\"\",M150*(K150/(X150)))","v":""}]
[null,null,null,null,null,null,null,null,null,null,null,null,null,null,null,"","","","","","","","",0,"","",""]
[null,null,null,null,null,null,null,null,null,null,null,null,null,null,null,"","","","","","","","",0,"","",""]
[null,null,null,null,null,null,null,null,null,null,null,null,null,null,null,"","","","","","","","",0,"","",""]
[null,null,null,null,null,null,null,null,null,null,null,null,null,null,null,"","","","","","","","",0,"","",""]
[null,null,null,null,null,null,null,null,null,null,null,null,null,null,null,"","","","","","","","",0,"","",""]
[null,null,null,null,null,null,null,null,null,null,null,null,null,null,null,null,null,null,null,null,null,null,null,{"$f":"E156+H156+K156","v":0},{"$f":"IF(U156=\"\",\"\",U156*(E156/X156))","v":""},{"$f":"IF(V156=\"\",\"\",V156*(H156/(X156)))","v":""},{"$f":"IF(M156=\"\",\"\",M156*(K156/(X156)))","v":""}]
[null,null,null,null,null,"Total compras",{"$f":"SUM(G147:G156)","v":0},null,"Total ventas",{"$f":"SUM(J147:J156)","v":0},null,null,null,null,null,{"$f":"SUMPRODUCT(P148:P156,Q148:Q156)","v":0},{"$f":"IF(P157=0,\"\",P157/SUM(P148:P156))","v":""},null,{"$f":"SUMPRODUCT(S148:S156,W148:W156)","v":0}]
[null,"Las terneras Sí consumen leche natural",{"$f":"IF(B158=\"Las terneras Sí consumen leche natural\",\"-----------------------Si sabes la cantidad anual consignala en la casilla siguiente ------------------------------------------------------------------->\",\"\")","v":"-----------------------Si sabes la cantidad anual consignala en la casilla siguiente ------------------------------------------------------------------->"},null,null,null,null,null,null,null,null,null,null,null,null,{"$f":"IF(C158=\"\",\"\",IF(K158=\"\",\"\",K158))","v":""}]
[null,"Mano de obra no eventual"]
[null,"Mano de obra familiar actividad vacas leche","Días/año","Horas/día","Si tiene asignado un salario €/año","UTA","Horas anuales declaradas","N. Personas"]
[]
[null,"Pedro",355,9,25000,{"$f":"IF(C162*D162>1920,1,(C162*D162)/1920)","v":1},{"$f":"C162*D162","v":3195},{"$f":"IF(F162>0,1,\"\")","v":1}]
[null,"Jaime",300,8,35000,{"$f":"IF(C163*D163>1920,1,(C163*D163)/1920)","v":1},{"$f":"C163*D163","v":2400},1]
[null,null,null,null,null,{"$f":"IF(C164*D164>1920,1,(C164*D164)/1920)","v":0},{"$f":"C164*D164","v":0},""]
[null,null,null,null,null,0,0,""]
[null,null,null,null,null,0,0,""]
[null,null,null,null,null,0,0,""]
[null,"Totales familiar",null,null,null,{"$f":"SUM(F162:F167)","v":2},{"$f":"SUM(G162:G167)","v":5595},{"$f":"SUM(H162:H167)","v":2}]
[null,"Mano de obra contratada para vacas de leche","Días/año","Horas/día","€/hora","UTA","Horas anuales declaradas","N. Personas","Cálculo sueldo anual"]
[]
[null,"Francisco",300,9,10,{"$f":"IF(C171*D171>1920,1,(C171*D171)/1920)","v":1},{"$f":"C171*D171","v":2700},{"$f":"IF(F171>0,1,\"\")","v":1},{"$f":"IF(J171=\"\",IF(F171>0,IF(E171=\"\",\"\",G171*E171),\"\"),J171)","v":27000}]
[null,null,null,null,null,0,0,"",{"$f":"IF(J172=\"\",IF(F172>0,IF(E172=\"\",\"\",G172*E172),\"\"),J172)","v":""}]
[null,null,null,null,null,0,0,"",""]
[null,null,null,null,null,0,0,"",""]
[null,null,null,null,null,0,0,"",""]
[null,null,null,null,null,0,0,"",""]
[null,"Totals contractada",null,null,null,{"$f":"SUM(F171:F176)","v":1},{"$f":"SUM(G171:G176)","v":2700},{"$f":"SUM(H171:H176)","v":1}]
[null,"Total mà d'obra",null,null,null,{"$f":"F168+F177","v":3},null,{"$f":"H168+H177","v":3},{"$f":"SUM(I171:I176)","v":27000},{"$f":"SUM(J171:J176)","v":0}]
[null,"Edificios, maquinaria e instalaciones"]
[null," Maquinaria",null,null,null,null,null,"Edificios"]
[null,"Tipos, nombre...","Año","Valor Compra","Capital amortizado","Amortización anual","Capital actual","Tipos","Superfície m2","Año","Coste construcción","Capital amortizado","Amortización anual","Capital actual"]
[]
[null,"Bañera Gili 12 Tm",2003,9766.3700000000008,{"$f":"IF(A_Enc-C183<AA_Maq,D183-G183,D183)","v":9766.3700000000008},{"$f":"IF(A_Enc-C183<AA_Maq,D183*0.9/AA_Maq,0)","v":0},{"$f":"IF(A_Enc-C183<AA_Maq,D183*(1-0.9*(A_Enc-C183)/AA_Maq),D183*0.1)","v":976.63700000000017},"Estercolero 700 m2",null,2001,25916.84,{"$f":"IF(A_Enc-J183<AA_Edif,K183-N183,K183)","v":25916.84},{"$f":"IF(A_Enc-J183<AA_Edif,K183*0.95/AA_Edif,0)","v":0},{"$f":"IF(A_Enc-J183<AA_Edif,K183-((K183/AA_Edif)*(A_Enc-J183)),K183*0.05)","v":1295.8420000000001}]
[null,"John Deere 6820",2004,52586.2,52586.2,0,5258.62,"3 Silos prefabricados",null,2002,31999.8,30399.81,1519.9904999999999,1599.989999999998]
[null,"Compar RBT-600",2005,21721.27,21721.27,0,2172.127,"Nave de terneras y pavimentación caminos explotación",null,2002,55630.74,52849.202999999994,2642.4601499999999,2781.5370000000039]
[null,"Rampí krone 4m",2005,3879,3879,0,387.90000000000003,"A",null,2010,74194.489999999991,40806.969499999992,3524.2382749999997,33387.520499999999]
[null,"Sembradora 3m amazone",2008,9210.3700000000008,9210.3700000000008,0,921.03700000000015,"B",null,2011,20265,10132.5,962.58749999999998,10132.5]
[null,"Pala",2011,1074,1074,0,107.4,"C",null,2012,17051.599999999999,7673.2199999999993,809.95099999999991,9378.3799999999992]
[null,"Tractor John deere 6430 con pala delantera",2012,60000,48600,5400,11400.000000000004,"D",null,2013,54260,21704,2577.35,32556]
[null,null,null,null,0,0,0,null,null,null,null,0,0,0]
[null,null,null,null,0,0,0,null,null,null,null,0,0,0]
[null,null,null,null,0,0,0,null,null,"Total",{"$f":"SUM(K183:K188)","v":225058.47},{"$f":"SUM(L183:L191)","v":189482.54250000001},{"$f":"SUM(M183:M191)","v":12036.577424999999},{"$f":"SUM(N183:N188)","v":58575.769500000002}]
[null,null,null,null,0,0,0,"Equipo de ordeño y frio (instalaciones)",null,null,null,"Capital amortizado","Amortización anual","Capital actual"]
[null,null,null,null,0,0,0,"Maquinaria","Puestos","Año","Valor de compra"]
[null,null,null,null,0,0,0,"Maquina ordeño",null,2010,{"$f":"92034.3-18500","v":73534.3},{"$f":"IF(A_Enc-J195<AA_Frio,K195-N195,K195)","v":73534.3},{"$f":"IF(A_Enc-J195<AA_Frio,K195*0.9/AA_Frio,0)","v":0},{"$f":"IF(A_Enc-J195<AA_Frio,K195-((K195/AA_Frio)*(A_Enc-J195)),K195*0.1)","v":7353.43}]
[null,null,null,null,0,0,0,"A",null,2011,3389.01,{"$f":"IF(A_Enc-J196<AA_Frio,K196-N196,K196)","v":3389.01},{"$f":"IF(A_Enc-J196<AA_Frio,K196*0.9/AA_Frio,0)","v":0},{"$f":"IF(A_Enc-J196<AA_Frio,K196-((K196/AA_Frio)*(A_Enc-J196)),K196*0.1)","v":338.90100000000007}]
[null,null,null,null,0,0,0,"B",null,2012,14095,{"$f":"IF(A_Enc-J197<AA_Frio,K197-N197,K197)","v":12685.5},{"$f":"IF(A_Enc-J197<AA_Frio,K197*0.9/AA_Frio,0)","v":1268.55},{"$f":"IF(A_Enc-J197<AA_Frio,K197-((K197/AA_Frio)*(A_Enc-J197)),K197*0.1)","v":1409.5}]
[null,null,null,null,0,0,0,"C",null,2013,54071.91,{"$f":"IF(A_Enc-J198<AA_Frio,K198-N198,K198)","v":43257.528000000006},{"$f":"IF(A_Enc-J198<AA_Frio,K198*0.9/AA_Frio,0)","v":4866.4719000000005},{"$f":"IF(A_Enc-J198<AA_Frio,K198-((K198/AA_Frio)*(A_Enc-J198)),K198*0.1)","v":10814.381999999998}]
[null,null,null,null,0,0,0,"Frio","Litros","Año","Valor de compra",{"$f":"SUM(L195:L198)","v":132866.33799999999},{"$f":"SUM(M195:M198)","v":6135.0219000000006},{"$f":"SUM(N195:N198)","v":19916.212999999996}]
[null,null,null,null,0,0,0,"Tanque leche",null,2010,18500,{"$f":"IF(A_Enc-J200<AA_Frio,K200-N200,K200)","v":18500},{"$f":"IF(A_Enc-J200<AA_Frio,K200*0.9/AA_Frio,0)","v":0},{"$f":"IF(A_Enc-J200<AA_Frio,K200-((K200/AA_Frio)*(A_Enc-J200)),K200*0.1)","v":1850}]
[null,null,null,null,0,0,0,null,null,null,null,{"$f":"IF(A_Enc-J201<AA_Frio,K201-N201,K201)","v":0},{"$f":"IF(A_Enc-J201<AA_Frio,K201*0.9/AA_Frio,0)","v":0},{"$f":"IF(A_Enc-J201<AA_Frio,K201-((K201/AA_Frio)*(A_Enc-J201)),K201*0.1)","v":0}]
[null,null,"Total ",{"$f":"SUM(D183:D201)","v":158237.21},{"$f":"SUM(E183:E201)","v":146837.21},{"$f":"SUM(F183:F201)","v":5400},{"$f":"SUM(G183:G201)","v":21223.721000000005},null,null,null,null,{"$f":"IF(A_Enc-J202<AA_Frio,K202-N202,K202)","v":0},{"$f":"IF(A_Enc-J202<AA_Frio,K202*0.9/AA_Frio,0)","v":0},{"$f":"IF(A_Enc-J202<AA_Frio,K202-((K202/AA_Frio)*(A_Enc-J202)),K202*0.1)","v":0}]
[null,null,null,null,null,null,null,null,null,"Total",{"$f":"SUM(K195:K202)","v":163590.22},{"$f":"SUM(L200:L202)+L199","v":151366.33799999999},{"$f":"SUM(M200:M202)+M199","v":6135.0219000000006},{"$f":"SUM(N200:N202)+N199","v":21766.212999999996}]
[null,"Gastos anuales vacuno de leche no consignadas anteriormente"]
[null,"Costes variables",null,null,"Costes fijos"]
[null,"Carburantes y lubricantes",20384.14,null,"Coservación y reparación maquinaria",13569.640000000001]
[null,"Alquiler maquinaria",31486.79,null,"Conservación y reparación edificios",1992.22]
[null,"Veterinario",9197.84,null,"Contribuciones / impuestos",416.84000000000003]
[null,"Medicinas y productos veterinarios",6027.26,null,"Intereses prestamos y comisiones",8970.2999999999993]
[null,"Lecho / camas",11409.19,null,"Asesorías y servicios técnicos",0]
[null,"Material diverso",4224.2300000000005,null,"Seguridad social familiar",8598.6600000000017]
[null,"Luz",6959.82,null,"Arrendamiento suelo agrícola",9325]
[null,"Teléfono",0,null,"Arrendamiento edificios",4200]
[null,"Detergentes y desinfectantes",3027.1200000000003,null,"Otros arrendamientos",1260]
[null,"Consumo agua",4489.25,null,"Seguros vacas",5757.0300000000007]
[null,"Inseminaciones",3166.4000000000005,null,"Seguros maquinaria",775.95]
[null,"Sueldos eventuales (incluida SS)",0,null,"Seguros edificios",1159.72]
[null,null,null,null,"Seguros cosechas",0]
[null,null,null,null,"Control lechero",1378.3500000000001]
[null,null,null,null,"Administración y gestoría",1542.32]
[null,null,null,null,"Seguros diversos",329.72]
[]
[]
[]
[]
[]
[null,"Ingresos de la leche y otros"]
[null,"Destino de la leche",null,null,null,"Otros ingresos"]
[null,"Concepto","L","€/l","Total €","Concepto","Total €"]
[null,"Venta leche",1007718,{"$f":"0.340971670645955","v":0.34097167064595502},{"$f":"C230*D230","v":343603.2900000005},"Venta estiércol",0]
[null,"Venta al detalle",null,null,0,"Subvenciones",65541.849000000002]
[null,null,null,null,0,"Indemnizaciones",0]
[null,null,null,null,0]
[null,null,null,null,0]
[null,null,null,null,0,"Venta vacas, terneras y toros",15568.530000000002]
[null,"Consumo familiar real",null,null,{"$f":"IF(D230<100,(C236*D230),(C236*(D230/C230)))","v":0},"Venta terneros/as",5120]
[null,"Consumo familiar estimado",{"$f":"IF(C236>0,0,H251*365)","v":1095},null,{"$f":"IF(D230<100,(C237*D230),(C237*(D230/C230)))","v":373.36397935732072},"Compra vacas, terneras y toros",0]
[null,"Consumo recría",{"$f":"IF(C158=\"\",0, IF(P158=\"\",Llet_Mam*Dies_Mam*L76,P158))","v":14378},null,null,"Compra terneros/as",0]
[null,"Llet_P",{"$f":"C230+C231+C232+C233+C234 +C235+C236+C237+C238","v":1023191},{"$f":"IF(C239>0,(E240/C239),0)","v":0.33618029671816679},null,"Total",{"$f":"SUM(G230:G236)-SUM(G237:G238)","v":86230.379000000001}]
[null,"Llet_V",{"$f":"C230+C231+C232+C233+C234+C235","v":1007718},{"$f":"IF(C240>0+AND(E240>0),(E240/C240),0)","v":0.34134217507215092},{"$f":"E230+E231+E232+E235+E236+E237","v":343976.6539793578}]
[null,"Calidad leche"]
[null,"Concepto","Media","Concepto","Media"]
[null,"Tasa grasa",3.81,"Células",315]
[null,"Tasa proteína",3.15,"Bacterias",12]
[null,"Características explotación y empresario"]
[null,"Forma legal de la explotación",null,null,"Coop"]
[null,"Lugar residencia"]
[null,"Nivel de estudios",null,null,"Bachillerato"]
[null,"Recibió algun tipo formación agraria   ",null,null,"Sí"]
[]
[null," Edad",35,"  Nº hijos",1,"  Personas que dependen ",null,3]
[null,"¿Quién lo sucederá en la explotación?",null,null,null,"NS"]
[null,"Edad del sucesor"]
[null," Nivel de estudios",null,"NS","Recibió algun tipo formación agraria   "]
[]
[]
[null,"% Ingresos agrícolas y ganaderos sobre ingresos familiares",null,null,null,null,90]
[]
[null,"Datos descriptivos de la explotación y del manejo"]
[null,"Tipo de explotación",null,null,"trabada",null,"Grado de limpieza instalaciones de ordeño",null,null,null,"bueno"]
[null,"Sistema de limpieza",null,null,"arrastrador",null,"Grado de limpieza ubres vacas",null,null,null,"bueno"]
[null,{"$f":"IF(E260=\"trabada\",\"Número posiciones\",IF(E260=\"Libre_cubículos\",\"Número cubículos\",\"M2 zona reposo\"))","v":"Número posiciones"},null,null,100,null,"Frecuencia control gestación",null,null,null,"1 por mes"]
[null,"M2 zona exercicio",null,null,null,null,"Primera causa reposición",null,null,null,"infertilidad"]
[null,"Tejado aislado",null,null,"Sí",null,"Segunda causa reposición",null,null,null,"producción",null,null," "]
[null,"Altura zona reposo",null,null,null,null,"Primer tipo semen elegido",null,null,null,"no probado"]
[null,"Tipo abrevaderos",null,null,"cazoleta",null,"Segundo tipo semen elegido",null,null,null,"carne"]
[null,{"$f":"IF(E266=\"Cazoleta\",\"Número cazoletas\",\"Número abrevaderos\")","v":"Número cazoletas"},null,null,null,null,"Primer problema manejo",null,null,null,"no indica"]
[null,"Tipo de ordeño",null,null,"Espina_pescado",null,"Valoración primer problema manejo",null,null,null,"no valora"]
[null,"Línea de leche",null,null,"baja",null,"Segundo problema manejo",null,null,null,"torsiones"]
[null,"Número unidades de oreño",null,null,12,null,"Valoración segundo problema manejo",null,null,null," normal"]
[null,"Tipo pulsador",null,null,"neumático",null,"Sigue programa de mejora y selección genética?",null,null,null,"Sí"]
[null,"Relación sución/masaje",null,null,"60_40",null,"Grado vigilancia celos",null,null,null,"Al ordeñar"]
[null,"Retiradores de ordeñadoras",null,null,"Si",null,"Edad media del primer parto en mesas"]
[null,"Presión normal de ordeño",null,null,"42-44 kpa",null,"Número medio de partes por vaca"]
[null,"Número de ordeñadores",null,null,"uno",null,"Intervalo medio entre partes, días"]
[null,"Tiempo de un ordeño",null,null,"> 90 minutos",null,"Número medio de inseminaciones / vaca"]
[null,"Inyecta oxitocina?",null,null,"no",null,"Valoración forrajes (de 0 a 5)"]
[null,"Lotes lactación",null,null,"dos",null,"E maíz"]
[null,"Número de puestos en el comedero  (vacas lactación)",null,null,null,null,"E. sorgo"]
[null,"Altura rastrillo alimentación",null,null,"suficiente",null,"E. Cebada"]
[null,"Nivel comedero en relació patas",null,null,"nivel patas",null,"E raygras"]
[null,"Ventiladores",null,null,"Sí",null,"E. triticale"]
[null,"Difusores agua",null,null,"No",null,"E. Alfalfa"]
[null,"Orientación comedero",null,null,"correcta",null,"Heno alfalfa"]
[null,"Orientación zona reposo",null,null,"correcta",null,"Heno cebada"]
[null,"Collares",null,null,"Sí",null,"Alfalfa deshidratada"]
[null,"Manejo racionamiento lactación",null,null,"unifeed",null,"Paja"]
[null,"Número distribuciones ración diària",null,null,"1_dia"]
[null,"Consistencia boñigas",null,null,"blanda"]
[null,"Observación boñigas",null,null,"pliegues_intestino"]

{"sheet":"ResultadosTécnicosEconómicos","index":1,"n_rows":293,"n_cols":6,"rows_kept":293,"cut":false,"hidden":false,"merged":[]}
[null,"concepte","Valores"]
[]
[null,"C.autonoma",{"$f":"EntradaDatosExplotación!F23","v":"AAAAA"}]
[null,"Nom o nombre explotació",{"$f":"EntradaDatosExplotación!H26","v":"dddd"}]
[null,"Província",{"$f":"EntradaDatosExplotación!F26","v":"BBB"}]
[null,"Comarca",{"$f":"EntradaDatosExplotación!D26","v":"BB"}]
[null,"Municipio",{"$f":"EntradaDatosExplotación!B26","v":"B"}]
[null,"Control lechero",{"$f":"EntradaDatosExplotación!H27","v":"Sí"}]
["ST","Has totales",{"$f":"IF(EntradaDatosExplotación!H32=\"\",\"-\",EntradaDatosExplotación!H32)","v":75}]
[null,"%  Sup propia",{"$f":"IF(EntradaDatosExplotación!H32=0,0,(EntradaDatosExplotación!B32+EntradaDatosExplotación!C32)/(EntradaDatosExplotación!H32))","v":1}]
["SF","Has de forrajes",{"$f":"EntradaDatosExplotación!E37+EntradaDatosExplotación!F37","v":75}]
["Sleche","Has a leche",{"$f":"SUM(C11:C11)","v":75}]
[null,"% regadio",{"$f":"EntradaDatosExplotación!F51/EntradaDatosExplotación!G51","v":0.33333333333333331}]
["Vi","vacas inicio",{"$f":"EntradaDatosExplotación!C74","v":111}]
["Vf","vacas final",{"$f":"EntradaDatosExplotación!J74","v":121}]
["VM","Nº vacas media",{"$f":"EntradaDatosExplotación!L74","v":116}]
[null,"% primer parto",{"$f":"EntradaDatosExplotación!M71","v":0.34913793103448276}]
[null,"% secas",{"$f":"EntradaDatosExplotación!M75","v":7.7586206896551727E-2}]
["Tendencia","tendencia: (v2-v1)*100/v1",{"$f":"EntradaDatosExplotación!I102","v":9.0090090090090086E-2}]
["UGM","UGM media",{"$f":"EntradaDatosExplotación!N74+EntradaDatosExplotación!M93+EntradaDatosExplotación!M100","v":163.5}]
["UTA","Uta_totales",{"$f":"EntradaDatosExplotación!F178","v":3}]
["UTAf","Uta_familiar",{"$f":"EntradaDatosExplotación!F168","v":2}]
["UTAa","Uta_Asalariada",{"$f":"UTA-UTAf","v":1}]
["Pfij","Personas fijas totales",{"$f":"EntradaDatosExplotación!H178","v":3}]
["Pfijf","Personas fijas familiares",{"$f":"EntradaDatosExplotación!H168","v":2}]
["Horasf","horas familiares declaradas",{"$f":"EntradaDatosExplotación!G168","v":5595}]
["HorasAs","horas asal total",{"$f":"EntradaDatosExplotación!G177","v":2700}]
["CapT","Capital Total",{"$f":"SUM(C29:C33)","v":327312.56849999999}]
["CapE","Capital edificios",{"$f":"EntradaDatosExplotación!N192","v":58575.769500000002}]
["CapM","Capital maquinaria",{"$f":"EntradaDatosExplotación!G202","v":21223.721000000005}]
["CapI","Capital instalaciones ordeño y frio",{"$f":"EntradaDatosExplotación!N203","v":21766.212999999996}]
["CapG","Capital ganado",{"$f":"IF(EntradaDatosExplotación!N93>0,EntradaDatosExplotación!O74+EntradaDatosExplotación!N93+EntradaDatosExplotación!N100,EntradaDatosExplotación!O74+EntradaDatosExplotación!O78+EntradaDatosExplotación!N100)","v":201716.67499999999}]
["CapC","Capital circulante",{"$f":"EntradaDatosExplotación!P61+EntradaDatosExplotación!G124+EntradaDatosExplotación!C210","v":24030.190000000002}]
["VM_ha","vacas media/ha leche",{"$f":"VM/Sllet","v":1.5466666666666666}]
["UGM_ha","UGM vacuno leche/ha leche",{"$f":"UBM/Sllet","v":2.1800000000000002}]
["VM_UTA","vacas media/uta totales",{"$f":"VM/C21","v":38.666666666666664}]
["CT_VM","Capital total/vacas media",{"$f":"CapT/VM","v":2821.660073275862}]
["CT_UTA","Capital/uta",{"$f":"CapT/C21","v":109104.18949999999}]
["PlVCf","Leche vendida + consumo familiar",{"$f":"EntradaDatosExplotación!C240+EntradaDatosExplotación!C237","v":1008813}]
["PlR","Leche reempleada",{"$f":"EntradaDatosExplotación!C238","v":14378}]
["PlCf","Consumo familiar ",{"$f":"IF(EntradaDatosExplotación!C236>0,EntradaDatosExplotación!C236,EntradaDatosExplotación!C237)","v":1095}]
["Pl","leche producida",{"$f":"EntradaDatosExplotación!C239","v":1023191}]
["Pl_VM","leche producida por vaca media",{"$f":"Pl/VM","v":8820.6120689655181}]
["Pienso","Total de pienso, 90% MS,  a vacas",{"$f":"EntradaDatosExplotación!P143*EntradaDatosExplotación!Q143/ResultadosTécnicosEconómicos!D44","v":451414.62471111101},0.9]
["Pienso_VM","Total de pienso de vaca por vaca media",{"$f":"Pinso/VM","v":3891.5053854406124}]
["Pienso_l","consumo de pienso de vaca por litro",{"$f":"Pinso/Pl","v":0.44118314636378841}]
["Precio","€ litro leche vendida",{"$f":"EntradaDatosExplotación!D240","v":0.34134217507215092}]
["PrecioCo","€/Kg concentrado  comprado vacas",{"$f":"IF(F48=\"\",\"\",EntradaDatosExplotación!G143/ResultadosTécnicosEconómicos!F48)","v":0.3385688035293084},{"$f":"SUMPRODUCT(EntradaDatosExplotación!E128:E142,EntradaDatosExplotación!F128:F142)","v":461634.44799999997},{"$f":"D48/SUM(EntradaDatosExplotación!E128:E142)","v":0.88},{"$f":"IF(D48=0,\"\",D48*E48/D44)","v":451375.9047111111}]
["PrecioCoR","€/Kg concentrado recría",{"$f":"IF(F49=\"\",\"\",EntradaDatosExplotación!G157/ResultadosTécnicosEconómicos!F49)","v":""},{"$f":"SUMPRODUCT(EntradaDatosExplotación!E148:E156,EntradaDatosExplotación!F148:F156)","v":0},{"$f":"IF(D49=0,\"\",D49/SUM(EntradaDatosExplotación!E148:E156))","v":""},{"$f":"IF(D49=0,\"\",D49*E49/D44)","v":""}]
["Coste_ha","Coste cultivos por ha",{"$f":"EntradaDatosExplotación!P61/Sllet","v":168.28}]
["IT","Ingresos totales",{"$f":"SUM(C52:C60)","v":430643.07766106183},"€"]
["Il","Ingresos por leche vendida",{"$f":"PlVCf*Preu","v":344350.4236610618}]
["Itern","Ingresos por venta neta de terneros",{"$f":"EntradaDatosExplotación!G236-EntradaDatosExplotación!G238","v":5120}]
[null,"Ingresos por venta neta resto animales",{"$f":"EntradaDatosExplotación!G235-EntradaDatosExplotación!G237","v":15568.530000000002}]
[null,{"$f":"EntradaDatosExplotación!F230","v":"Venta estiércol"},{"$f":"EntradaDatosExplotación!G230","v":0}]
[null,{"$f":"EntradaDatosExplotación!F231","v":"Subvenciones"},{"$f":"EntradaDatosExplotación!G231","v":65541.849000000002}]
[null,{"$f":"EntradaDatosExplotación!F232","v":"Indemnizaciones"},{"$f":"EntradaDatosExplotación!G232","v":0}]
[null,{"$f":"IF(EntradaDatosExplotación!F233=\"\",\"\",EntradaDatosExplotación!F233)","v":""},{"$f":"EntradaDatosExplotación!G233","v":0}]
[null,{"$f":"IF(EntradaDatosExplotación!F234=\"\",\"\",EntradaDatosExplotación!F234)","v":""},{"$f":"EntradaDatosExplotación!G234","v":0}]
[null,"Ingresos por variación de inventario animal",{"$f":"EntradaDatosExplotación!P74+EntradaDatosExplotación!O93+EntradaDatosExplotación!N100","v":62.274999999999636}]
["CV","Costes Variables",{"$f":"C62+C65+C71+C74+C75+C76+C77+C78+C79+C80+C81+C82+C83+C84+C85+C86+C87+C88+C89+C90+C91","v":243089.94938407274},"€"]
["Prod_comp","Productos comprados para la alimentación",{"$f":"SUM(C63:C64)","v":152821.80000000002}]
[null,"Forrajes comprados",{"$f":"EntradaDatosExplotación!G124","v":0}]
[null,"Concentrados",{"$f":"EntradaDatosExplotación!G143+EntradaDatosExplotación!G157","v":152821.80000000002}]
[null,"Costes parcelas",{"$f":"EntradaDatosExplotación!P61","v":12621}]
[null,"Semillas",{"$f":"EntradaDatosExplotación!P56","v":4000}]
[null,"Abonos",{"$f":"EntradaDatosExplotación!P57","v":3200}]
[null,"Tratamientos",{"$f":"EntradaDatosExplotación!P58","v":2100}]
[null,"Plásticos y conservantes",{"$f":"EntradaDatosExplotación!P59","v":1321}]
[null,"Otros (agua riego, etc.)",{"$f":"EntradaDatosExplotación!P60","v":2000}]
[null,"Maquinaria",{"$f":"C72+C73","v":51870.93}]
[null,"Carburantes y lubricantes",{"$f":"EntradaDatosExplotación!C206","v":20384.14}]
[null,"Alquiler maquinaria",{"$f":"EntradaDatosExplotación!C207","v":31486.79}]
[null,"Veterinario",{"$f":"EntradaDatosExplotación!C208","v":9197.84}]
[null,"Medicinas y productos veterinarios",{"$f":"EntradaDatosExplotación!C209","v":6027.26}]
[null,"Lecho / camas",{"$f":"EntradaDatosExplotación!C210","v":11409.19}]
[null,"Material diverso",{"$f":"EntradaDatosExplotación!C211","v":4224.2300000000005}]
[null,"Luz",{"$f":"EntradaDatosExplotación!C212","v":6959.82}]
[null,"Teléfono",{"$f":"EntradaDatosExplotación!C213","v":0}]
[null,"Detergentes y desinfectantes",{"$f":"EntradaDatosExplotación!C214","v":3027.1200000000003}]
[null,"Consumo agua",{"$f":"EntradaDatosExplotación!C215","v":4489.25}]
[null,"Inseminaciones",{"$f":"EntradaDatosExplotación!C216","v":3166.4000000000005}]
[null,"Sueldos eventuales (incluida SS)",{"$f":"EntradaDatosExplotación!C217","v":0}]
[null,{"$f":"IF(EntradaDatosExplotación!B218=\"\",\"\",EntradaDatosExplotación!B218)","v":""},{"$f":"EntradaDatosExplotación!C218","v":0}]
[null,{"$f":"IF(EntradaDatosExplotación!B219=\"\",\"\",EntradaDatosExplotación!B219)","v":""},{"$f":"EntradaDatosExplotación!C219","v":0}]
[null,{"$f":"IF(EntradaDatosExplotación!B220=\"\",\"\",EntradaDatosExplotación!B220)","v":""},{"$f":"EntradaDatosExplotación!C220","v":0}]
[null,{"$f":"IF(EntradaDatosExplotación!B221=\"\",\"\",EntradaDatosExplotación!B221)","v":""},{"$f":"EntradaDatosExplotación!C221","v":0}]
[null,{"$f":"IF(EntradaDatosExplotación!B222=\"\",\"\",EntradaDatosExplotación!B222)","v":""},{"$f":"EntradaDatosExplotación!C222","v":0}]
[null,{"$f":"IF(EntradaDatosExplotación!B225=\"\",\"\",EntradaDatosExplotación!B225)","v":""},{"$f":"EntradaDatosExplotación!C225","v":0}]
[null,{"$f":"IF(EntradaDatosExplotación!B226=\"\",\"\",EntradaDatosExplotación!B226)","v":""},{"$f":"EntradaDatosExplotación!C226","v":0}]
[null,"Variación inventario productos alimentarios",{"$f":"-(EntradaDatosExplotación!S124+EntradaDatosExplotación!S143+EntradaDatosExplotación!S157)","v":-22724.890615927347}]
[null,"Costes fijos",{"$f":"SUM(C93:C113)","v":109847.34932500002},"€"]
[null,"Amortización anual maquinaria",{"$f":"EntradaDatosExplotación!F202","v":5400}]
[null,"Amortización anual edificaciones",{"$f":"EntradaDatosExplotación!M192","v":12036.577424999999}]
[null,"Amortización instalaciones",{"$f":"EntradaDatosExplotación!M203","v":6135.0219000000006}]
[null,"Coservación y reparación maquinaria",{"$f":"EntradaDatosExplotación!F206","v":13569.640000000001}]
[null,"Conservación y reparación edificios",{"$f":"EntradaDatosExplotación!F207","v":1992.22}]
[null,"Contribuciones / impuestos",{"$f":"EntradaDatosExplotación!F208","v":416.84000000000003}]
[null,"Intereses prestamos y comisiones",{"$f":"EntradaDatosExplotación!F209","v":8970.2999999999993}]
[null,"Asesorías y Servicios Técnicos",{"$f":"EntradaDatosExplotación!F210","v":0}]
[null,"Sueldos fijos",{"$f":"EntradaDatosExplotación!I178","v":27000}]
[null,"Seguridad social familiar",{"$f":"EntradaDatosExplotación!F211","v":8598.6600000000017}]
[null,"Arrendamiento suelo agrícola",{"$f":"EntradaDatosExplotación!F212","v":9325}]
[null,"Arrendamiento edificios",{"$f":"EntradaDatosExplotación!F213","v":4200}]
[null,"Otros arrendamientos",{"$f":"EntradaDatosExplotación!F214","v":1260}]
[null,"Seguros vacas",{"$f":"EntradaDatosExplotación!F215","v":5757.0300000000007}]
[null,"Seguros maquinaria",{"$f":"EntradaDatosExplotación!F216","v":775.95}]
[null,"Seguros edificios",{"$f":"EntradaDatosExplotación!F217","v":1159.72}]
[null,"Seguros Cosechas",{"$f":"EntradaDatosExplotación!F218","v":0}]
[null,"Control lechero",{"$f":"EntradaDatosExplotación!F219","v":1378.3500000000001}]
[null,"Administración y gestoría",{"$f":"EntradaDatosExplotación!F220","v":1542.32}]
[null,"Seguros varios",{"$f":"EntradaDatosExplotación!F221","v":329.72}]
[null,{"$f":"IF(EntradaDatosExplotación!E225=\"\",\"\",EntradaDatosExplotación!E225)","v":""},{"$f":"EntradaDatosExplotación!F225","v":0}]
[null,"Costes Oportunidad",{"$f":"(C115+C116+C117)","v":77472.103667560004},"€"]
[null,"Renta de la tierra",{"$f":"(EntradaDatosExplotación!B32*EntradaDatosExplotación!C65)+(EntradaDatosExplotación!C32*EntradaDatosExplotación!D65)","v":12800}]
[null,"Mano de obra familiar",{"$f":"UTAf*Hores_UTA*Preu_h_f","v":63004}]
[null,"Interés capital propio",{"$f":"(EntradaDatosExplotación!O74+EntradaDatosExplotación!N93+EntradaDatosExplotación!N100)*Int_bestiar+EntradaDatosExplotación!N192*Int_Edif+EntradaDatosExplotación!G202*Int_Maq+EntradaDatosExplotación!N203*Int_Frio+(3/12)*C33*Int_Cap_Cir","v":1668.1036675599998}]
[null,"Costes totales (sin incluir costes de oportunidad)",{"$f":"C92+C61","v":352937.29870907275},"€"]
[null,"Costes totales (Incluyendo costes de oportunidad)",{"$f":"C118+C114","v":430409.40237663279},"€"]
[null,"Margen bruto",{"$f":"C51-C61","v":187553.1282769891},"€"]
[null,"Margen neto",{"$f":"MB-C92","v":77705.778951989079},"€"]
[null,"Beneficio",{"$f":"MN-C114","v":233.67528442907496},"€"]
[null,"RUT (Renta Unitaria del trabajo)",{"$f":"(MN+C102+C101)/C21","v":37768.146317329694},"€"]
[null,{"$f":"B51","v":"Ingresos totales"},{"$f":"IT/Pl","v":0.42088239406040695},"cts.€/litro"]
[null,"Ingresos por leche vendida",{"$f":"C52/Pl","v":0.33654559477268836}]
[null,"Ingresos por venta neta de terneros",5.0039533185886114E-3]
[null,"Ingresos por venta neta resto animales",1.5215663546688744E-2]
[null,"Venta estiércol",0]
[null,"Subvenciones",6.4056318908199933E-2]
[null,"Indemnizaciones",0]
[null,"",0]
[null,"",0]
[null,"Ingresos por variación de inventario animal",6.0863514241231245E-5]
[null,"Costes Variables",{"$f":"CV/Pl","v":0.23758022635468132}]
[null,"Productos comprados para la alimentación",{"$f":"Prod_comp/Pl","v":0.14935803774661818}]
[null,"Forrajes comprados",{"$f":"C63/Pl","v":0}]
[null,"Concentrados",0.14935803774661818]
[null,"Costes parcelas",1.2334940397247435E-2]
[null,"Semillas",3.9093385301473531E-3]
[null,"Abonos",3.1274708241178823E-3]
[null,"Tratamientos",2.0524027283273603E-3]
[null,"Plásticos y conservantes",1.2910590495811632E-3]
[null,"Otros (agua riego, etc.)",1.9546692650736766E-3]
[null,"Maquinaria",5.0695256310894055E-2]
[null,"Carburantes y lubricantes",1.9922125976479466E-2]
[null,"Alquiler maquinaria",3.0773130334414592E-2]
[null,"Veterinario",8.9893675765326322E-3]
[null,"Medicinas y productos veterinarios",5.890649937303984E-3]
[null,"Lecho / camas",1.1150596516192969E-2]
[null,"Material diverso",4.1284862748010888E-3]
[null,"Luz",6.8020731222225373E-3]
[null,"Teléfono",0]
[null,"Detergentes y desinfectantes",2.9585092128449138E-3]
[null,"Consumo agua",4.3874994991160007E-3]
[null,"Inseminaciones",3.094632380464645E-3]
[null,"Sueldos eventuales (incluida SS)",0]
[null,"",0]
[null,"",0]
[null,"",0]
[null,"",0]
[null,"",0]
[null,"",0]
[null,"",0]
[null,"Variación inventario productos alimentarios",-2.2209822619557194E-2]
[null,"Costes fijos",{"$f":"CF/Pl","v":0.10735761878769459}]
[null,"Amortización anual maquinaria",{"$f":"C93/Pl","v":5.2776070156989258E-3}]
[null,{"$f":"B94","v":"Amortización anual edificaciones"},1.1763763974663577E-2]
[null,"Amortización instalaciones",5.9959693742419554E-3]
[null,{"$f":"B96","v":"Coservación y reparación maquinaria"},1.3262079123057182E-2]
[null,"Conservación y reparación edificios",1.9470656016325398E-3]
[null,"Contribuciones / impuestos",4.0739216822665566E-4]
[null,"Intereses prestamos y comisiones",8.7669848542451991E-3]
[null,"Asesorías y Servicios Técnicos",0]
[null,"Sueldos fijos",2.6388035078494632E-2]
[null,"Seguridad social familiar",8.4037682114092103E-3]
[null,"Arrendamiento suelo agrícola",9.1136454484060155E-3]
[null,"Arrendamiento edificios",4.1048054566547205E-3]
[null,"Otros arrendamientos",1.2314416369964161E-3]
[null,"Seguros vacas",5.6265447995535543E-3]
[null,"Seguros maquinaria",7.5836280811695958E-4]
[null,"Seguros edificios",1.133434520045622E-3]
[null,"Seguros Cosechas",0]
[null,"Control lechero",1.3471091907571509E-3]
[null,"Administración y gestoría",1.5073627504542163E-3]
[null,"Seguros varios",3.2224677504004629E-4]
[null,"",0]
[null,"Costes Oportunidad",{"$f":"CO/Pl","v":7.5716169969790595E-2}]
[null,"Renta de la tierra",{"$f":"C115/Pl","v":1.2509883296471529E-2}]
[null,"Mano de obra familiar",6.1575991188350956E-2]
[null,"Interés capital propio",1.6302954849681044E-3]
[null,"Costes totales (sin incluir costes de oportunidad)",0.34493784514237591]
[null,"Costes totales (Incluyendo costes de oportunidad)",0.42065401511216655]
[null,"Margen bruto",0.1833021677057256]
[null,"Margen neto",7.5944548918031027E-2]
[null,"Beneficio",2.2837894824043114E-4]
[null,"RUT (Renta Unitaria del trabajo)",3.6912117402644953E-2]
[null,"Llindar rendibilitat MN",{"$f":"C191-(C124-C125)","v":0.26060104585465732}]
[null,"Llindar rendibilitat B",{"$f":"C192-(C124-C125)","v":0.33631721582444796}]
[null,{"$f":"IF(C199=\"\",\"\",\"Maquinaria\")","v":"Maquinaria"},{"$f":"IF(EntradaDatosExplotación!B183=\"\",\"\",EntradaDatosExplotación!B183)","v":"Bañera Gili 12 Tm"}]
[null,{"$f":"IF(C200=\"\",\"\",\"Maquinaria\")","v":"Maquinaria"},{"$f":"IF(EntradaDatosExplotación!B184=\"\",\"\",EntradaDatosExplotación!B184)","v":"John Deere 6820"}]
[null,"Maquinaria",{"$f":"IF(EntradaDatosExplotación!B185=\"\",\"\",EntradaDatosExplotación!B185)","v":"Compar RBT-600"}]
[null,"Maquinaria",{"$f":"IF(EntradaDatosExplotación!B186=\"\",\"\",EntradaDatosExplotación!B186)","v":"Rampí krone 4m"}]
[null,"Maquinaria",{"$f":"IF(EntradaDatosExplotación!B187=\"\",\"\",EntradaDatosExplotación!B187)","v":"Sembradora 3m amazone"}]
[null,"Maquinaria",{"$f":"IF(EntradaDatosExplotación!B188=\"\",\"\",EntradaDatosExplotación!B188)","v":"Pala"}]
[null,"Maquinaria",{"$f":"IF(EntradaDatosExplotación!B189=\"\",\"\",EntradaDatosExplotación!B189)","v":"Tractor John deere 6430 con pala delantera"}]
[null,"",{"$f":"IF(EntradaDatosExplotación!B190=\"\",\"\",EntradaDatosExplotación!B190)","v":""}]
[null,"",{"$f":"IF(EntradaDatosExplotación!B191=\"\",\"\",EntradaDatosExplotación!B191)","v":""}]
[null,"",{"$f":"IF(EntradaDatosExplotación!B192=\"\",\"\",EntradaDatosExplotación!B192)","v":""}]
[null,"",{"$f":"IF(EntradaDatosExplotación!B193=\"\",\"\",EntradaDatosExplotación!B193)","v":""}]
[null,"",{"$f":"IF(EntradaDatosExplotación!B194=\"\",\"\",EntradaDatosExplotación!B194)","v":""}]
[null,"",{"$f":"IF(EntradaDatosExplotación!B195=\"\",\"\",EntradaDatosExplotación!B195)","v":""}]
[null,"",{"$f":"IF(EntradaDatosExplotación!B196=\"\",\"\",EntradaDatosExplotación!B196)","v":""}]
[null,"",{"$f":"IF(EntradaDatosExplotación!B197=\"\",\"\",EntradaDatosExplotación!B197)","v":""}]
[null,"",{"$f":"IF(EntradaDatosExplotación!B198=\"\",\"\",EntradaDatosExplotación!B198)","v":""}]
[null,"",{"$f":"IF(EntradaDatosExplotación!B199=\"\",\"\",EntradaDatosExplotación!B199)","v":""}]
[null,"",{"$f":"IF(EntradaDatosExplotación!B200=\"\",\"\",EntradaDatosExplotación!B200)","v":""}]
[null,"",{"$f":"IF(EntradaDatosExplotación!B201=\"\",\"\",EntradaDatosExplotación!B201)","v":""}]
[null,{"$f":"IF(C218=\"\",\"\",\"Edificaciones\")","v":"Edificaciones"},{"$f":"IF(EntradaDatosExplotación!H183=\"\",\"\",EntradaDatosExplotación!H183)","v":"Estercolero 700 m2"}]
[null,{"$f":"IF(C219=\"\",\"\",\"Edificaciones\")","v":"Edificaciones"},{"$f":"IF(EntradaDatosExplotación!H184=\"\",\"\",EntradaDatosExplotación!H184)","v":"3 Silos prefabricados"}]
[null,"Edificaciones",{"$f":"IF(EntradaDatosExplotación!H185=\"\",\"\",EntradaDatosExplotación!H185)","v":"Nave de terneras y pavimentación caminos explotación"}]
[null,"Edificaciones",{"$f":"IF(EntradaDatosExplotación!H186=\"\",\"\",EntradaDatosExplotación!H186)","v":"A"}]
[null,"Edificaciones",{"$f":"IF(EntradaDatosExplotación!H187=\"\",\"\",EntradaDatosExplotación!H187)","v":"B"}]
[null,"Edificaciones",{"$f":"IF(EntradaDatosExplotación!H188=\"\",\"\",EntradaDatosExplotación!H188)","v":"C"}]
[null,"Edificaciones",{"$f":"IF(EntradaDatosExplotación!H189=\"\",\"\",EntradaDatosExplotación!H189)","v":"D"}]
[null,"",{"$f":"IF(EntradaDatosExplotación!H190=\"\",\"\",EntradaDatosExplotación!H190)","v":""}]
[null,"",{"$f":"IF(EntradaDatosExplotación!H191=\"\",\"\",EntradaDatosExplotación!H191)","v":""}]
[null,{"$f":"IF(C227=\"\",\"\",\"Equipo de ordeño y frio\")","v":"Equipo de ordeño y frio"},{"$f":"IF(EntradaDatosExplotación!H195=\"\",\"\",EntradaDatosExplotación!H195)","v":"Maquina ordeño"}]
[null,{"$f":"IF(C228=\"\",\"\",\"Equipo de ordeño y frio\")","v":"Equipo de ordeño y frio"},{"$f":"IF(EntradaDatosExplotación!H196=\"\",\"\",EntradaDatosExplotación!H196)","v":"A"}]
[null,"Equipo de ordeño y frio",{"$f":"IF(EntradaDatosExplotación!H197=\"\",\"\",EntradaDatosExplotación!H197)","v":"B"}]
[null,"Equipo de ordeño y frio",{"$f":"IF(EntradaDatosExplotación!H198=\"\",\"\",EntradaDatosExplotación!H198)","v":"C"}]
[null,"Equipo de ordeño y frio",{"$f":"IF(EntradaDatosExplotación!H200=\"\",\"\",EntradaDatosExplotación!H200)","v":"Tanque leche"}]
[null,"",{"$f":"IF(EntradaDatosExplotación!H201=\"\",\"\",EntradaDatosExplotación!H201)","v":""}]
[null,"",{"$f":"IF(EntradaDatosExplotación!H202=\"\",\"\",EntradaDatosExplotación!H202)","v":""}]
[null,"Forma legal de la explotación",{"$f":"IF(EntradaDatosExplotación!E246=\"\",\"-\",EntradaDatosExplotación!E246)","v":"Coop"}]
[null,"Lugar residencia",{"$f":"IF(EntradaDatosExplotación!E247=\"\",\"-\",EntradaDatosExplotación!E247)","v":"-"}]
[null,"Nivel de estudios",{"$f":"IF(EntradaDatosExplotación!E248=\"\",\"-\",EntradaDatosExplotación!E248)","v":"Bachillerato"}]
[null,"Formación Agraria",{"$f":"IF(EntradaDatosExplotación!E249=\"\",\"-\",EntradaDatosExplotación!E249)","v":"Sí"}]
[null,"Edad",{"$f":"IF(EntradaDatosExplotación!C251=\"\",\"-\",EntradaDatosExplotación!C251)","v":35}]
[null,"Nº hijos",{"$f":"IF(EntradaDatosExplotación!E251=\"\",\"-\",EntradaDatosExplotación!E251)","v":1}]
[null,"Nº Familiares dependientes",{"$f":"IF(EntradaDatosExplotación!H251=\"\",\"-\",EntradaDatosExplotación!H251)","v":3}]
[null,"Sucesor",{"$f":"IF(EntradaDatosExplotación!F252=\"\",\"-\",EntradaDatosExplotación!F252)","v":"NS"}]
[null,"Edad sucesor",{"$f":"IF(EntradaDatosExplotación!D253=\"\",\"-\",EntradaDatosExplotación!D253)","v":"-"}]
[null,"Nivel de estudios sucesor",{"$f":"IF(EntradaDatosExplotación!D254=\"\",\"-\",EntradaDatosExplotación!D254)","v":"NS"}]
[null,"Form. agraria sucesor",{"$f":"IF(EntradaDatosExplotación!F256=\"\",\"-\",EntradaDatosExplotación!F256)","v":"-"}]
[null,"% Ingresos Agric-Ramad.",{"$f":"IF(EntradaDatosExplotación!G257=\"\",\"-\",EntradaDatosExplotación!G257)","v":90}]
[null,{"$f":"EntradaDatosExplotación!B260","v":"Tipo de explotación"},{"$f":"EntradaDatosExplotación!E260","v":"trabada"}]
[null,{"$f":"EntradaDatosExplotación!B261","v":"Sistema de limpieza"},{"$f":"EntradaDatosExplotación!E261","v":"arrastrador"}]
[null,"Nombre llocs/cubicles/superfície zona repòs",{"$f":"EntradaDatosExplotación!E262","v":100}]
[null,{"$f":"EntradaDatosExplotación!B263","v":"M2 zona exercicio"},{"$f":"EntradaDatosExplotación!E263","v":0}]
[null,{"$f":"EntradaDatosExplotación!B264","v":"Tejado aislado"},{"$f":"EntradaDatosExplotación!E264","v":"Sí"}]
[null,{"$f":"EntradaDatosExplotación!B265","v":"Altura zona reposo"},{"$f":"EntradaDatosExplotación!E265","v":0}]
[null,{"$f":"EntradaDatosExplotación!B266","v":"Tipo abrevaderos"},{"$f":"EntradaDatosExplotación!E266","v":"cazoleta"}]
[null,"Nombre abeuradors/Nombre caçoletes",{"$f":"EntradaDatosExplotación!E267","v":0}]
[null,{"$f":"EntradaDatosExplotación!B268","v":"Tipo de ordeño"},{"$f":"EntradaDatosExplotación!E268","v":"Espina_pescado"}]
[null,{"$f":"EntradaDatosExplotación!B269","v":"Línea de leche"},{"$f":"EntradaDatosExplotación!E269","v":"baja"}]
[null,{"$f":"EntradaDatosExplotación!B270","v":"Número unidades de oreño"},{"$f":"EntradaDatosExplotación!E270","v":12}]
[null,{"$f":"EntradaDatosExplotación!B271","v":"Tipo pulsador"},{"$f":"EntradaDatosExplotación!E271","v":"neumático"}]
[null,{"$f":"EntradaDatosExplotación!B272","v":"Relación sución/masaje"},{"$f":"EntradaDatosExplotación!E272","v":"60_40"}]
[null,{"$f":"EntradaDatosExplotación!B273","v":"Retiradores de ordeñadoras"},{"$f":"EntradaDatosExplotación!E273","v":"Si"}]
[null,{"$f":"EntradaDatosExplotación!B274","v":"Presión normal de ordeño"},{"$f":"EntradaDatosExplotación!E274","v":"42-44 kpa"}]
[null,{"$f":"EntradaDatosExplotación!B275","v":"Número de ordeñadores"},{"$f":"EntradaDatosExplotación!E275","v":"uno"}]
[null,{"$f":"EntradaDatosExplotación!B276","v":"Tiempo de un ordeño"},{"$f":"EntradaDatosExplotación!E276","v":"> 90 minutos"}]
[null,{"$f":"EntradaDatosExplotación!B277","v":"Inyecta oxitocina?"},{"$f":"EntradaDatosExplotación!E277","v":"no"}]
[null,{"$f":"EntradaDatosExplotación!B278","v":"Lotes lactación"},{"$f":"EntradaDatosExplotación!E278","v":"dos"}]
[null,{"$f":"EntradaDatosExplotación!B279","v":"Número de puestos en el comedero  (vacas lactación)"},{"$f":"EntradaDatosExplotación!E279","v":0}]
[null,{"$f":"EntradaDatosExplotación!B280","v":"Altura rastrillo alimentación"},{"$f":"EntradaDatosExplotación!E280","v":"suficiente"}]
[null,{"$f":"EntradaDatosExplotación!B281","v":"Nivel comedero en relació patas"},{"$f":"EntradaDatosExplotación!E281","v":"nivel patas"}]
[null,{"$f":"EntradaDatosExplotación!B282","v":"Ventiladores"},{"$f":"EntradaDatosExplotación!E282","v":"Sí"}]
[null,{"$f":"EntradaDatosExplotación!B283","v":"Difusores agua"},{"$f":"EntradaDatosExplotación!E283","v":"No"}]
[null,{"$f":"EntradaDatosExplotación!B284","v":"Orientación comedero"},{"$f":"EntradaDatosExplotación!E284","v":"correcta"}]
[null,{"$f":"EntradaDatosExplotación!B285","v":"Orientación zona reposo"},{"$f":"EntradaDatosExplotación!E285","v":"correcta"}]
[null,{"$f":"EntradaDatosExplotación!B286","v":"Collares"},{"$f":"EntradaDatosExplotación!E286","v":"Sí"}]
[null,{"$f":"EntradaDatosExplotación!B287","v":"Manejo racionamiento lactación"},{"$f":"EntradaDatosExplotación!E287","v":"unifeed"}]
[null,{"$f":"EntradaDatosExplotación!B288","v":"Número distribuciones ración diària"},{"$f":"EntradaDatosExplotación!E288","v":"1_dia"}]
[null,{"$f":"EntradaDatosExplotación!B289","v":"Consistencia boñigas"},{"$f":"EntradaDatosExplotación!E289","v":"blanda"}]
[null,{"$f":"EntradaDatosExplotación!B290","v":"Observación boñigas"},{"$f":"EntradaDatosExplotación!E290","v":"pliegues_intestino"}]
[null,{"$f":"EntradaDatosExplotación!G260","v":"Grado de limpieza instalaciones de ordeño"},{"$f":"EntradaDatosExplotación!K260","v":"bueno"}]
[null,{"$f":"EntradaDatosExplotación!G261","v":"Grado de limpieza ubres vacas"},{"$f":"EntradaDatosExplotación!K261","v":"bueno"}]
[null,{"$f":"EntradaDatosExplotación!G262","v":"Frecuencia control gestación"},{"$f":"EntradaDatosExplotación!K262","v":"1 por mes"}]
[null,{"$f":"EntradaDatosExplotación!G263","v":"Primera causa reposición"},{"$f":"EntradaDatosExplotación!K263","v":"infertilidad"}]
[null,{"$f":"EntradaDatosExplotación!G264","v":"Segunda causa reposición"},{"$f":"EntradaDatosExplotación!K264","v":"producción"}]
[null,{"$f":"EntradaDatosExplotación!G265","v":"Primer tipo semen elegido"},{"$f":"EntradaDatosExplotación!K265","v":"no probado"}]
[null,{"$f":"EntradaDatosExplotación!G266","v":"Segundo tipo semen elegido"},{"$f":"EntradaDatosExplotación!K266","v":"carne"}]
[null,{"$f":"EntradaDatosExplotación!G267","v":"Primer problema manejo"},{"$f":"EntradaDatosExplotación!K267","v":"no indica"}]
[null,{"$f":"EntradaDatosExplotación!G268","v":"Valoración primer problema manejo"},{"$f":"EntradaDatosExplotación!K268","v":"no valora"}]
[null,{"$f":"EntradaDatosExplotación!G269","v":"Segundo problema manejo"},{"$f":"EntradaDatosExplotación!K269","v":"torsiones"}]
[null,{"$f":"EntradaDatosExplotación!G270","v":"Valoración segundo problema manejo"},{"$f":"EntradaDatosExplotación!K270","v":" normal"}]
[null,{"$f":"EntradaDatosExplotación!G271","v":"Sigue programa de mejora y selección genética?"},{"$f":"EntradaDatosExplotación!K271","v":"Sí"}]
[null,{"$f":"EntradaDatosExplotación!G272","v":"Grado vigilancia celos"},{"$f":"EntradaDatosExplotación!K272","v":"Al ordeñar"}]
[null,{"$f":"EntradaDatosExplotación!G273","v":"Edad media del primer parto en mesas"},{"$f":"EntradaDatosExplotación!K273","v":0}]
[null,{"$f":"EntradaDatosExplotación!G274","v":"Número medio de partes por vaca"},{"$f":"EntradaDatosExplotación!K274","v":0}]
[null,{"$f":"EntradaDatosExplotación!G275","v":"Intervalo medio entre partes, días"},{"$f":"EntradaDatosExplotación!K275","v":0}]
[null,{"$f":"EntradaDatosExplotación!G276","v":"Número medio de inseminaciones / vaca"},{"$f":"EntradaDatosExplotación!K276","v":0}]

{"sheet":"ResultadosGrupoGestión","index":2,"n_rows":293,"n_cols":5,"rows_kept":293,"cut":false,"hidden":false,"merged":[]}
["concepto","Encuestas","min","max","media"]
[null,{"$f":"COUNTA($F4:$GL4)","v":0}]
[{"$f":"ResultadosTécnicosEconómicos!B3","v":"C.autonoma"}]
[{"$f":"ResultadosTécnicosEconómicos!B4","v":"Nom o nombre explotació"},"Casos"]
[{"$f":"ResultadosTécnicosEconómicos!B5","v":"Província"}]
[{"$f":"ResultadosTécnicosEconómicos!B6","v":"Comarca"}]
[{"$f":"ResultadosTécnicosEconómicos!B7","v":"Municipio"}]
[{"$f":"ResultadosTécnicosEconómicos!B8","v":"Control lechero"},{"$f":"COUNTA($F8:$GL8)","v":0}]
[{"$f":"ResultadosTécnicosEconómicos!B9","v":"Has totales"},0,{"$f":"MIN($F9:$GL9)","v":0},{"$f":"MAX($F9:$GL9)","v":0},{"$f":"SUMIF($F9:$GL9,\">0\")/$B$2","v":{"$error":"#DIV/0!"}}]
[{"$f":"ResultadosTécnicosEconómicos!B10","v":"%  Sup propia"},0,0,0,{"$error":"#DIV/0!"}]
[{"$f":"ResultadosTécnicosEconómicos!B11","v":"Has de forrajes"},0,0,0,{"$error":"#DIV/0!"}]
[{"$f":"ResultadosTécnicosEconómicos!B12","v":"Has a leche"},0,0,0,{"$error":"#DIV/0!"}]
[{"$f":"ResultadosTécnicosEconómicos!B13","v":"% regadio"},0,0,0,{"$error":"#DIV/0!"}]
[{"$f":"ResultadosTécnicosEconómicos!B14","v":"vacas inicio"},0,0,0,{"$error":"#DIV/0!"}]
[{"$f":"ResultadosTécnicosEconómicos!B15","v":"vacas final"},0,0,0,{"$error":"#DIV/0!"}]
[{"$f":"ResultadosTécnicosEconómicos!B16","v":"Nº vacas media"},0,0,0,{"$error":"#DIV/0!"}]
[{"$f":"ResultadosTécnicosEconómicos!B17","v":"% primer parto"},0,0,0,{"$error":"#DIV/0!"}]
[{"$f":"ResultadosTécnicosEconómicos!B18","v":"% secas"},0,0,0,{"$error":"#DIV/0!"}]
[{"$f":"ResultadosTécnicosEconómicos!B19","v":"tendencia: (v2-v1)*100/v1"},0,0,0,{"$error":"#DIV/0!"}]
[{"$f":"ResultadosTécnicosEconómicos!B20","v":"UGM media"},0,0,0,{"$error":"#DIV/0!"}]
[{"$f":"ResultadosTécnicosEconómicos!B21","v":"Uta_totales"},0,0,0,{"$error":"#DIV/0!"}]
[{"$f":"ResultadosTécnicosEconómicos!B22","v":"Uta_familiar"},0,0,0,{"$error":"#DIV/0!"}]
[{"$f":"ResultadosTécnicosEconómicos!B23","v":"Uta_Asalariada"},0,0,0,{"$error":"#DIV/0!"}]
[{"$f":"ResultadosTécnicosEconómicos!B24","v":"Personas fijas totales"},0,0,0,{"$error":"#DIV/0!"}]
[{"$f":"ResultadosTécnicosEconómicos!B25","v":"Personas fijas familiares"},0,0,0,{"$error":"#DIV/0!"}]
[{"$f":"ResultadosTécnicosEconómicos!B26","v":"horas familiares declaradas"},0,0,0,{"$error":"#DIV/0!"}]
[{"$f":"ResultadosTécnicosEconómicos!B27","v":"horas asal total"},0,0,0,{"$error":"#DIV/0!"}]
[{"$f":"ResultadosTécnicosEconómicos!B28","v":"Capital Total"},0,0,0,{"$error":"#DIV/0!"}]
[{"$f":"ResultadosTécnicosEconómicos!B29","v":"Capital edificios"},0,0,0,{"$error":"#DIV/0!"}]
[{"$f":"ResultadosTécnicosEconómicos!B30","v":"Capital maquinaria"},0,0,0,{"$error":"#DIV/0!"}]
[{"$f":"ResultadosTécnicosEconómicos!B31","v":"Capital instalaciones ordeño y frio"},0,0,0,{"$error":"#DIV/0!"}]
[{"$f":"ResultadosTécnicosEconómicos!B32","v":"Capital ganado"},0,0,0,{"$error":"#DIV/0!"}]
[{"$f":"ResultadosTécnicosEconómicos!B33","v":"Capital circulante"},0,0,0,{"$error":"#DIV/0!"}]
[{"$f":"ResultadosTécnicosEconómicos!B34","v":"vacas media/ha leche"},0,0,0,{"$error":"#DIV/0!"}]
[{"$f":"ResultadosTécnicosEconómicos!B35","v":"UGM vacuno leche/ha leche"},0,0,0,{"$error":"#DIV/0!"}]
[{"$f":"ResultadosTécnicosEconómicos!B36","v":"vacas media/uta totales"},0,0,0,{"$error":"#DIV/0!"}]
[{"$f":"ResultadosTécnicosEconómicos!B37","v":"Capital total/vacas media"},0,0,0,{"$error":"#DIV/0!"}]
[{"$f":"ResultadosTécnicosEconómicos!B38","v":"Capital/uta"},0,0,0,{"$error":"#DIV/0!"}]
[{"$f":"ResultadosTécnicosEconómicos!B39","v":"Leche vendida + consumo familiar"},0,0,0,{"$error":"#DIV/0!"}]
[{"$f":"ResultadosTécnicosEconómicos!B40","v":"Leche reempleada"},0,0,0,{"$error":"#DIV/0!"}]
[{"$f":"ResultadosTécnicosEconómicos!B41","v":"Consumo familiar "},0,0,0,{"$f":"SUMIF($F41:$GL41,\">0\")/$B$2","v":{"$error":"#DIV/0!"}}]
[{"$f":"ResultadosTécnicosEconómicos!B42","v":"leche producida"},0,0,0,{"$error":"#DIV/0!"}]
[{"$f":"ResultadosTécnicosEconómicos!B43","v":"leche producida por vaca media"},0,0,0,{"$error":"#DIV/0!"}]
[{"$f":"ResultadosTécnicosEconómicos!B44","v":"Total de pienso, 90% MS,  a vacas"},0,0,0,{"$error":"#DIV/0!"}]
[{"$f":"ResultadosTécnicosEconómicos!B45","v":"Total de pienso de vaca por vaca media"},0,0,0,{"$error":"#DIV/0!"}]
[{"$f":"ResultadosTécnicosEconómicos!B46","v":"consumo de pienso de vaca por litro"},0,0,0,{"$error":"#DIV/0!"}]
[{"$f":"ResultadosTécnicosEconómicos!B47","v":"€ litro leche vendida"},0,0,0,{"$error":"#DIV/0!"}]
[{"$f":"ResultadosTécnicosEconómicos!B48","v":"€/Kg concentrado  comprado vacas"},0,0,0,{"$error":"#DIV/0!"}]
[{"$f":"ResultadosTécnicosEconómicos!B49","v":"€/Kg concentrado recría"},0,0,0,{"$error":"#DIV/0!"}]
[{"$f":"ResultadosTécnicosEconómicos!B50","v":"Coste cultivos por ha"},0,0,0,{"$error":"#DIV/0!"}]
[{"$f":"ResultadosTécnicosEconómicos!B51","v":"Ingresos totales"},0,0,0,{"$error":"#DIV/0!"}]
[{"$f":"ResultadosTécnicosEconómicos!B52","v":"Ingresos por leche vendida"},0,0,0,{"$error":"#DIV/0!"}]
[{"$f":"ResultadosTécnicosEconómicos!B53","v":"Ingresos por venta neta de terneros"},0,0,0,{"$error":"#DIV/0!"}]
[{"$f":"ResultadosTécnicosEconómicos!B54","v":"Ingresos por venta neta resto animales"},0,0,0,{"$error":"#DIV/0!"}]
[{"$f":"ResultadosTécnicosEconómicos!B55","v":"Venta estiércol"},0,0,0,{"$error":"#DIV/0!"}]
[{"$f":"ResultadosTécnicosEconómicos!B56","v":"Subvenciones"},0,0,0,{"$error":"#DIV/0!"}]
[{"$f":"ResultadosTécnicosEconómicos!B57","v":"Indemnizaciones"},0,0,0,{"$error":"#DIV/0!"}]
[{"$f":"ResultadosTécnicosEconómicos!B58","v":""},0,0,0,{"$error":"#DIV/0!"}]
[{"$f":"ResultadosTécnicosEconómicos!B59","v":""},0,0,0,{"$error":"#DIV/0!"}]
[{"$f":"ResultadosTécnicosEconómicos!B60","v":"Ingresos por variación de inventario animal"},0,0,0,{"$error":"#DIV/0!"}]
[{"$f":"ResultadosTécnicosEconómicos!B61","v":"Costes Variables"},0,0,0,{"$error":"#DIV/0!"}]
[{"$f":"ResultadosTécnicosEconómicos!B62","v":"Productos comprados para la alimentación"},0,0,0,{"$error":"#DIV/0!"}]
[{"$f":"ResultadosTécnicosEconómicos!B63","v":"Forrajes comprados"},0,0,0,{"$error":"#DIV/0!"}]
[{"$f":"ResultadosTécnicosEconómicos!B64","v":"Concentrados"},0,0,0,{"$error":"#DIV/0!"}]
[{"$f":"ResultadosTécnicosEconómicos!B65","v":"Costes parcelas"},0,0,0,{"$error":"#DIV/0!"}]
[{"$f":"ResultadosTécnicosEconómicos!B66","v":"Semillas"},0,0,0,{"$error":"#DIV/0!"}]
[{"$f":"ResultadosTécnicosEconómicos!B67","v":"Abonos"},0,0,0,{"$error":"#DIV/0!"}]
[{"$f":"ResultadosTécnicosEconómicos!B68","v":"Tratamientos"},0,0,0,{"$error":"#DIV/0!"}]
[{"$f":"ResultadosTécnicosEconómicos!B69","v":"Plásticos y conservantes"},0,0,0,{"$error":"#DIV/0!"}]
[{"$f":"ResultadosTécnicosEconómicos!B70","v":"Otros (agua riego, etc.)"},0,0,0,{"$error":"#DIV/0!"}]
[{"$f":"ResultadosTécnicosEconómicos!B71","v":"Maquinaria"},0,0,0,{"$error":"#DIV/0!"}]
[{"$f":"ResultadosTécnicosEconómicos!B72","v":"Carburantes y lubricantes"},{"$f":"COUNTA($F72:$GL72)","v":0},0,0,{"$error":"#DIV/0!"}]
[{"$f":"ResultadosTécnicosEconómicos!B73","v":"Alquiler maquinaria"},0,{"$f":"MIN($F73:$GL73)","v":0},{"$f":"MAX($F73:$GL73)","v":0},{"$f":"SUMIF($F73:$GL73,\">0\")/$B$2","v":{"$error":"#DIV/0!"}}]
[{"$f":"ResultadosTécnicosEconómicos!B74","v":"Veterinario"},0,0,0,{"$error":"#DIV/0!"}]
[{"$f":"ResultadosTécnicosEconómicos!B75","v":"Medicinas y productos veterinarios"},0,0,0,{"$error":"#DIV/0!"}]
[{"$f":"ResultadosTécnicosEconómicos!B76","v":"Lecho / camas"},0,0,0,{"$error":"#DIV/0!"}]
[{"$f":"ResultadosTécnicosEconómicos!B77","v":"Material diverso"},0,0,0,{"$error":"#DIV/0!"}]
[{"$f":"ResultadosTécnicosEconómicos!B78","v":"Luz"},0,0,0,{"$error":"#DIV/0!"}]
[{"$f":"ResultadosTécnicosEconómicos!B79","v":"Teléfono"},0,0,0,{"$error":"#DIV/0!"}]
[{"$f":"ResultadosTécnicosEconómicos!B80","v":"Detergentes y desinfectantes"},0,0,0,{"$error":"#DIV/0!"}]
[{"$f":"ResultadosTécnicosEconómicos!B81","v":"Consumo agua"},0,0,0,{"$error":"#DIV/0!"}]
[{"$f":"ResultadosTécnicosEconómicos!B82","v":"Inseminaciones"},0,0,0,{"$error":"#DIV/0!"}]
[{"$f":"ResultadosTécnicosEconómicos!B83","v":"Sueldos eventuales (incluida SS)"},0,0,0,{"$error":"#DIV/0!"}]
[{"$f":"ResultadosTécnicosEconómicos!B84","v":""},0,0,0,{"$error":"#DIV/0!"}]
[{"$f":"ResultadosTécnicosEconómicos!B85","v":""},0,0,0,{"$error":"#DIV/0!"}]
[{"$f":"ResultadosTécnicosEconómicos!B86","v":""},0,0,0,{"$error":"#DIV/0!"}]
[{"$f":"ResultadosTécnicosEconómicos!B87","v":""},0,0,0,{"$error":"#DIV/0!"}]
[{"$f":"ResultadosTécnicosEconómicos!B88","v":""},0,0,0,{"$error":"#DIV/0!"}]
[{"$f":"ResultadosTécnicosEconómicos!B89","v":""},0,0,0,{"$error":"#DIV/0!"}]
[{"$f":"ResultadosTécnicosEconómicos!B90","v":""},0,0,0,{"$error":"#DIV/0!"}]
[{"$f":"ResultadosTécnicosEconómicos!B91","v":"Variación inventario productos alimentarios"},0,0,0,{"$error":"#DIV/0!"}]
[{"$f":"ResultadosTécnicosEconómicos!B92","v":"Costes fijos"},0,0,0,{"$error":"#DIV/0!"}]
[{"$f":"ResultadosTécnicosEconómicos!B93","v":"Amortización anual maquinaria"},0,0,0,{"$error":"#DIV/0!"}]
[{"$f":"ResultadosTécnicosEconómicos!B94","v":"Amortización anual edificaciones"},0,0,0,{"$error":"#DIV/0!"}]
[{"$f":"ResultadosTécnicosEconómicos!B95","v":"Amortización instalaciones"},0,0,0,{"$error":"#DIV/0!"}]
[{"$f":"ResultadosTécnicosEconómicos!B96","v":"Coservación y reparación maquinaria"},0,0,0,{"$error":"#DIV/0!"}]
[{"$f":"ResultadosTécnicosEconómicos!B97","v":"Conservación y reparación edificios"},0,0,0,{"$error":"#DIV/0!"}]
[{"$f":"ResultadosTécnicosEconómicos!B98","v":"Contribuciones / impuestos"},0,0,0,{"$error":"#DIV/0!"}]
[{"$f":"ResultadosTécnicosEconómicos!B99","v":"Intereses prestamos y comisiones"},0,0,0,{"$error":"#DIV/0!"}]
[{"$f":"ResultadosTécnicosEconómicos!B100","v":"Asesorías y Servicios Técnicos"},0,0,0,{"$error":"#DIV/0!"}]
[{"$f":"ResultadosTécnicosEconómicos!B101","v":"Sueldos fijos"},0,0,0,{"$error":"#DIV/0!"}]
[{"$f":"ResultadosTécnicosEconómicos!B102","v":"Seguridad social familiar"},0,0,0,{"$error":"#DIV/0!"}]
[{"$f":"ResultadosTécnicosEconómicos!B103","v":"Arrendamiento suelo agrícola"},0,0,0,{"$error":"#DIV/0!"}]
[{"$f":"ResultadosTécnicosEconómicos!B104","v":"Arrendamiento edificios"},0,0,0,{"$error":"#DIV/0!"}]
[{"$f":"ResultadosTécnicosEconómicos!B105","v":"Otros arrendamientos"},0,0,0,{"$f":"SUMIF($F105:$GL105,\">0\")/$B$2","v":{"$error":"#DIV/0!"}}]
[{"$f":"ResultadosTécnicosEconómicos!B106","v":"Seguros vacas"},0,0,0,{"$error":"#DIV/0!"}]
[{"$f":"ResultadosTécnicosEconómicos!B107","v":"Seguros maquinaria"},0,0,0,{"$error":"#DIV/0!"}]
[{"$f":"ResultadosTécnicosEconómicos!B108","v":"Seguros edificios"},0,0,0,{"$error":"#DIV/0!"}]
[{"$f":"ResultadosTécnicosEconómicos!B109","v":"Seguros Cosechas"},0,0,0,{"$error":"#DIV/0!"}]
[{"$f":"ResultadosTécnicosEconómicos!B110","v":"Control lechero"},0,0,0,{"$error":"#DIV/0!"}]
[{"$f":"ResultadosTécnicosEconómicos!B111","v":"Administración y gestoría"},0,0,0,{"$error":"#DIV/0!"}]
[{"$f":"ResultadosTécnicosEconómicos!B112","v":"Seguros varios"},0,0,0,{"$error":"#DIV/0!"}]
[{"$f":"ResultadosTécnicosEconómicos!B113","v":""},0,0,0,{"$error":"#DIV/0!"}]
[{"$f":"ResultadosTécnicosEconómicos!B114","v":"Costes Oportunidad"},0,0,0,{"$error":"#DIV/0!"}]
[{"$f":"ResultadosTécnicosEconómicos!B115","v":"Renta de la tierra"},0,0,0,{"$error":"#DIV/0!"}]
[{"$f":"ResultadosTécnicosEconómicos!B116","v":"Mano de obra familiar"},0,0,0,{"$error":"#DIV/0!"}]
[{"$f":"ResultadosTécnicosEconómicos!B117","v":"Interés capital propio"},0,0,0,{"$error":"#DIV/0!"}]
[{"$f":"ResultadosTécnicosEconómicos!B118","v":"Costes totales (sin incluir costes de oportunidad)"},0,0,0,{"$error":"#DIV/0!"}]
[{"$f":"ResultadosTécnicosEconómicos!B119","v":"Costes totales (Incluyendo costes de oportunidad)"},0,0,0,{"$error":"#DIV/0!"}]
[{"$f":"ResultadosTécnicosEconómicos!B120","v":"Margen bruto"},0,0,0,{"$error":"#DIV/0!"}]
[{"$f":"ResultadosTécnicosEconómicos!B121","v":"Margen neto"},0,0,0,{"$error":"#DIV/0!"}]
[{"$f":"ResultadosTécnicosEconómicos!B122","v":"Beneficio"},0,0,0,{"$error":"#DIV/0!"}]
[{"$f":"ResultadosTécnicosEconómicos!B123","v":"RUT (Renta Unitaria del trabajo)"},0,0,0,{"$error":"#DIV/0!"}]
[{"$f":"ResultadosTécnicosEconómicos!B124","v":"Ingresos totales"},0,0,0,{"$error":"#DIV/0!"}]
[{"$f":"ResultadosTécnicosEconómicos!B125","v":"Ingresos por leche vendida"},0,0,0,{"$error":"#DIV/0!"}]
[{"$f":"ResultadosTécnicosEconómicos!B126","v":"Ingresos por venta neta de terneros"},0,0,0,{"$error":"#DIV/0!"}]
[{"$f":"ResultadosTécnicosEconómicos!B127","v":"Ingresos por venta neta resto animales"},0,0,0,{"$error":"#DIV/0!"}]
[{"$f":"ResultadosTécnicosEconómicos!B128","v":"Venta estiércol"},0,0,0,{"$error":"#DIV/0!"}]
[{"$f":"ResultadosTécnicosEconómicos!B129","v":"Subvenciones"},0,0,0,{"$error":"#DIV/0!"}]
[{"$f":"ResultadosTécnicosEconómicos!B130","v":"Indemnizaciones"},0,0,0,{"$error":"#DIV/0!"}]
[{"$f":"ResultadosTécnicosEconómicos!B131","v":""},0,0,0,{"$error":"#DIV/0!"}]
[{"$f":"ResultadosTécnicosEconómicos!B132","v":""},0,0,0,{"$error":"#DIV/0!"}]
[{"$f":"ResultadosTécnicosEconómicos!B133","v":"Ingresos por variación de inventario animal"},0,0,0,{"$error":"#DIV/0!"}]
[{"$f":"ResultadosTécnicosEconómicos!B134","v":"Costes Variables"},0,0,0,{"$error":"#DIV/0!"}]
[{"$f":"ResultadosTécnicosEconómicos!B135","v":"Productos comprados para la alimentación"},0,0,0,{"$error":"#DIV/0!"}]
[{"$f":"ResultadosTécnicosEconómicos!B136","v":"Forrajes comprados"},{"$f":"COUNTA($F136:$GL136)","v":0},0,0,{"$error":"#DIV/0!"}]
[{"$f":"ResultadosTécnicosEconómicos!B137","v":"Concentrados"},0,{"$f":"MIN($F137:$GL137)","v":0},{"$f":"MAX($F137:$GL137)","v":0},{"$f":"SUMIF($F137:$GL137,\">0\")/$B$2","v":{"$error":"#DIV/0!"}}]
[{"$f":"ResultadosTécnicosEconómicos!B138","v":"Costes parcelas"},0,0,0,{"$error":"#DIV/0!"}]
[{"$f":"ResultadosTécnicosEconómicos!B139","v":"Semillas"},0,0,0,{"$error":"#DIV/0!"}]
[{"$f":"ResultadosTécnicosEconómicos!B140","v":"Abonos"},0,0,0,{"$error":"#DIV/0!"}]
[{"$f":"ResultadosTécnicosEconómicos!B141","v":"Tratamientos"},0,0,0,{"$error":"#DIV/0!"}]
[{"$f":"ResultadosTécnicosEconómicos!B142","v":"Plásticos y conservantes"},0,0,0,{"$error":"#DIV/0!"}]
[{"$f":"ResultadosTécnicosEconómicos!B143","v":"Otros (agua riego, etc.)"},0,0,0,{"$error":"#DIV/0!"}]
[{"$f":"ResultadosTécnicosEconómicos!B144","v":"Maquinaria"},0,0,0,{"$error":"#DIV/0!"}]
[{"$f":"ResultadosTécnicosEconómicos!B145","v":"Carburantes y lubricantes"},0,0,0,{"$error":"#DIV/0!"}]
[{"$f":"ResultadosTécnicosEconómicos!B146","v":"Alquiler maquinaria"},0,0,0,{"$error":"#DIV/0!"}]
[{"$f":"ResultadosTécnicosEconómicos!B147","v":"Veterinario"},0,0,0,{"$error":"#DIV/0!"}]
[{"$f":"ResultadosTécnicosEconómicos!B148","v":"Medicinas y productos veterinarios"},0,0,0,{"$error":"#DIV/0!"}]
[{"$f":"ResultadosTécnicosEconómicos!B149","v":"Lecho / camas"},0,0,0,{"$error":"#DIV/0!"}]
[{"$f":"ResultadosTécnicosEconómicos!B150","v":"Material diverso"},0,0,0,{"$error":"#DIV/0!"}]
[{"$f":"ResultadosTécnicosEconómicos!B151","v":"Luz"},0,0,0,{"$error":"#DIV/0!"}]
[{"$f":"ResultadosTécnicosEconómicos!B152","v":"Teléfono"},0,0,0,{"$error":"#DIV/0!"}]
[{"$f":"ResultadosTécnicosEconómicos!B153","v":"Detergentes y desinfectantes"},0,0,0,{"$error":"#DIV/0!"}]
[{"$f":"ResultadosTécnicosEconómicos!B154","v":"Consumo agua"},0,0,0,{"$error":"#DIV/0!"}]
[{"$f":"ResultadosTécnicosEconómicos!B155","v":"Inseminaciones"},0,0,0,{"$error":"#DIV/0!"}]
[{"$f":"ResultadosTécnicosEconómicos!B156","v":"Sueldos eventuales (incluida SS)"},0,0,0,{"$error":"#DIV/0!"}]
[{"$f":"ResultadosTécnicosEconómicos!B157","v":""},0,0,0,{"$error":"#DIV/0!"}]
[{"$f":"ResultadosTécnicosEconómicos!B158","v":""},0,0,0,{"$error":"#DIV/0!"}]
[{"$f":"ResultadosTécnicosEconómicos!B159","v":""},0,0,0,{"$error":"#DIV/0!"}]
[{"$f":"ResultadosTécnicosEconómicos!B160","v":""},0,0,0,{"$error":"#DIV/0!"}]
[{"$f":"ResultadosTécnicosEconómicos!B161","v":""},0,0,0,{"$error":"#DIV/0!"}]
[{"$f":"ResultadosTécnicosEconómicos!B162","v":""},0,0,0,{"$error":"#DIV/0!"}]
[{"$f":"ResultadosTécnicosEconómicos!B163","v":""},0,0,0,{"$error":"#DIV/0!"}]
[{"$f":"ResultadosTécnicosEconómicos!B164","v":"Variación inventario productos alimentarios"},0,0,0,{"$error":"#DIV/0!"}]
[{"$f":"ResultadosTécnicosEconómicos!B165","v":"Costes fijos"},0,0,0,{"$error":"#DIV/0!"}]
[{"$f":"ResultadosTécnicosEconómicos!B166","v":"Amortización anual maquinaria"},0,0,0,{"$error":"#DIV/0!"}]
[{"$f":"ResultadosTécnicosEconómicos!B167","v":"Amortización anual edificaciones"},0,0,0,{"$error":"#DIV/0!"}]
[{"$f":"ResultadosTécnicosEconómicos!B168","v":"Amortización instalaciones"},0,0,0,{"$error":"#DIV/0!"}]
[{"$f":"ResultadosTécnicosEconómicos!B169","v":"Coservación y reparación maquinaria"},0,0,0,{"$f":"SUMIF($F169:$GL169,\">0\")/$B$2","v":{"$error":"#DIV/0!"}}]
[{"$f":"ResultadosTécnicosEconómicos!B170","v":"Conservación y reparación edificios"},0,0,0,{"$error":"#DIV/0!"}]
[{"$f":"ResultadosTécnicosEconómicos!B171","v":"Contribuciones / impuestos"},0,0,0,{"$error":"#DIV/0!"}]
[{"$f":"ResultadosTécnicosEconómicos!B172","v":"Intereses prestamos y comisiones"},0,0,0,{"$error":"#DIV/0!"}]
[{"$f":"ResultadosTécnicosEconómicos!B173","v":"Asesorías y Servicios Técnicos"},0,0,0,{"$error":"#DIV/0!"}]
[{"$f":"ResultadosTécnicosEconómicos!B174","v":"Sueldos fijos"},0,0,0,{"$error":"#DIV/0!"}]
[{"$f":"ResultadosTécnicosEconómicos!B175","v":"Seguridad social familiar"},0,0,0,{"$f":"SUM($F175:$GL175)/$B$2","v":{"$error":"#DIV/0!"}}]
[{"$f":"ResultadosTécnicosEconómicos!B176","v":"Arrendamiento suelo agrícola"},0,0,0,{"$error":"#DIV/0!"}]
[{"$f":"ResultadosTécnicosEconómicos!B177","v":"Arrendamiento edificios"},0,0,0,{"$error":"#DIV/0!"}]
[{"$f":"ResultadosTécnicosEconómicos!B178","v":"Otros arrendamientos"},0,0,0,{"$error":"#DIV/0!"}]
[{"$f":"ResultadosTécnicosEconómicos!B179","v":"Seguros vacas"},0,0,0,{"$error":"#DIV/0!"}]
[{"$f":"ResultadosTécnicosEconómicos!B180","v":"Seguros maquinaria"},0,0,0,{"$error":"#DIV/0!"}]
[{"$f":"ResultadosTécnicosEconómicos!B181","v":"Seguros edificios"},0,0,0,{"$error":"#DIV/0!"}]
[{"$f":"ResultadosTécnicosEconómicos!B182","v":"Seguros Cosechas"},0,0,0,{"$error":"#DIV/0!"}]
[{"$f":"ResultadosTécnicosEconómicos!B183","v":"Control lechero"},0,0,0,{"$error":"#DIV/0!"}]
[{"$f":"ResultadosTécnicosEconómicos!B184","v":"Administración y gestoría"},0,0,0,{"$error":"#DIV/0!"}]
[{"$f":"ResultadosTécnicosEconómicos!B185","v":"Seguros varios"},0,0,0,{"$error":"#DIV/0!"}]
[{"$f":"ResultadosTécnicosEconómicos!B186","v":""},0,0,0,{"$error":"#DIV/0!"}]
[{"$f":"ResultadosTécnicosEconómicos!B187","v":"Costes Oportunidad"},0,0,0,{"$error":"#DIV/0!"}]
[{"$f":"ResultadosTécnicosEconómicos!B188","v":"Renta de la tierra"},0,0,0,{"$error":"#DIV/0!"}]
[{"$f":"ResultadosTécnicosEconómicos!B189","v":"Mano de obra familiar"},0,0,0,{"$error":"#DIV/0!"}]
[{"$f":"ResultadosTécnicosEconómicos!B190","v":"Interés capital propio"},0,0,0,{"$error":"#DIV/0!"}]
[{"$f":"ResultadosTécnicosEconómicos!B191","v":"Costes totales (sin incluir costes de oportunidad)"},0,0,0,{"$error":"#DIV/0!"}]
[{"$f":"ResultadosTécnicosEconómicos!B192","v":"Costes totales (Incluyendo costes de oportunidad)"},0,0,0,{"$error":"#DIV/0!"}]
[{"$f":"ResultadosTécnicosEconómicos!B193","v":"Margen bruto"},0,0,0,{"$error":"#DIV/0!"}]
[{"$f":"ResultadosTécnicosEconómicos!B194","v":"Margen neto"},0,0,0,{"$error":"#DIV/0!"}]
[{"$f":"ResultadosTécnicosEconómicos!B195","v":"Beneficio"},0,0,0,{"$error":"#DIV/0!"}]
[{"$f":"ResultadosTécnicosEconómicos!B196","v":"RUT (Renta Unitaria del trabajo)"},0,0,0,{"$error":"#DIV/0!"}]
[{"$f":"ResultadosTécnicosEconómicos!B197","v":"Llindar rendibilitat MN"},0,0,0,{"$error":"#DIV/0!"}]
[{"$f":"ResultadosTécnicosEconómicos!B198","v":"Llindar rendibilitat B"},0,0,0,{"$error":"#DIV/0!"}]
[{"$f":"ResultadosTécnicosEconómicos!B199","v":"Maquinaria"},0,0,0,{"$error":"#DIV/0!"}]
[{"$f":"ResultadosTécnicosEconómicos!B200","v":"Maquinaria"},{"$f":"COUNTA($F200:$GL200)","v":0},0,0,{"$error":"#DIV/0!"}]
[{"$f":"ResultadosTécnicosEconómicos!B201","v":"Maquinaria"},0,{"$f":"MIN($F201:$GL201)","v":0},{"$f":"MAX($F201:$GL201)","v":0},{"$error":"#DIV/0!"}]
[{"$f":"ResultadosTécnicosEconómicos!B202","v":"Maquinaria"},0,0,0,{"$error":"#DIV/0!"}]
[{"$f":"ResultadosTécnicosEconómicos!B203","v":"Maquinaria"},0,0,0,{"$error":"#DIV/0!"}]
[{"$f":"ResultadosTécnicosEconómicos!B204","v":"Maquinaria"},0,0,0,{"$error":"#DIV/0!"}]
[{"$f":"ResultadosTécnicosEconómicos!B205","v":"Maquinaria"},0,0,0,{"$error":"#DIV/0!"}]
[{"$f":"ResultadosTécnicosEconómicos!B206","v":""},0,0,0,{"$error":"#DIV/0!"}]
[{"$f":"ResultadosTécnicosEconómicos!B207","v":""},0,0,0,{"$f":"SUM($F207:$GL207)/$B$2","v":{"$error":"#DIV/0!"}}]
[{"$f":"ResultadosTécnicosEconómicos!B208","v":""},0,0,0,{"$error":"#DIV/0!"}]
[{"$f":"ResultadosTécnicosEconómicos!B209","v":""},0,0,0,{"$error":"#DIV/0!"}]
[{"$f":"ResultadosTécnicosEconómicos!B210","v":""},0,0,0,{"$error":"#DIV/0!"}]
[{"$f":"ResultadosTécnicosEconómicos!B211","v":""},0,0,0,{"$error":"#DIV/0!"}]
[{"$f":"ResultadosTécnicosEconómicos!B212","v":""},0,0,0,{"$error":"#DIV/0!"}]
[{"$f":"ResultadosTécnicosEconómicos!B213","v":""},0,0,0,{"$error":"#DIV/0!"}]
[{"$f":"ResultadosTécnicosEconómicos!B214","v":""},0,0,0,{"$error":"#DIV/0!"}]
[{"$f":"ResultadosTécnicosEconómicos!B215","v":""},0,0,0,{"$error":"#DIV/0!"}]
[{"$f":"ResultadosTécnicosEconómicos!B216","v":""},0,0,0,{"$error":"#DIV/0!"}]
[{"$f":"ResultadosTécnicosEconómicos!B217","v":""},0,0,0,{"$error":"#DIV/0!"}]
[{"$f":"ResultadosTécnicosEconómicos!B218","v":"Edificaciones"},0,0,0,{"$error":"#DIV/0!"}]
[{"$f":"ResultadosTécnicosEconómicos!B219","v":"Edificaciones"},0,0,0,{"$error":"#DIV/0!"}]
[{"$f":"ResultadosTécnicosEconómicos!B220","v":"Edificaciones"},0,0,0,{"$error":"#DIV/0!"}]
[{"$f":"ResultadosTécnicosEconómicos!B221","v":"Edificaciones"},0,0,0,{"$error":"#DIV/0!"}]
[{"$f":"ResultadosTécnicosEconómicos!B222","v":"Edificaciones"},0,0,0,{"$error":"#DIV/0!"}]
[{"$f":"ResultadosTécnicosEconómicos!B223","v":"Edificaciones"},0,0,0,{"$error":"#DIV/0!"}]
[{"$f":"ResultadosTécnicosEconómicos!B224","v":"Edificaciones"},0,0,0,{"$error":"#DIV/0!"}]
[{"$f":"ResultadosTécnicosEconómicos!B225","v":""},0,0,0,{"$error":"#DIV/0!"}]
[{"$f":"ResultadosTécnicosEconómicos!B226","v":""},0,0,0,{"$error":"#DIV/0!"}]
[{"$f":"ResultadosTécnicosEconómicos!B227","v":"Equipo de ordeño y frio"},0,0,0,{"$error":"#DIV/0!"}]
[{"$f":"ResultadosTécnicosEconómicos!B228","v":"Equipo de ordeño y frio"},0,0,0,{"$error":"#DIV/0!"}]
[{"$f":"ResultadosTécnicosEconómicos!B229","v":"Equipo de ordeño y frio"},0,0,0,{"$error":"#DIV/0!"}]
[{"$f":"ResultadosTécnicosEconómicos!B230","v":"Equipo de ordeño y frio"},0,0,0,{"$error":"#DIV/0!"}]
[{"$f":"ResultadosTécnicosEconómicos!B231","v":"Equipo de ordeño y frio"},0,0,0,{"$error":"#DIV/0!"}]
[{"$f":"ResultadosTécnicosEconómicos!B232","v":""},0,0,0,{"$error":"#DIV/0!"}]
[{"$f":"ResultadosTécnicosEconómicos!B233","v":""},0,0,0,{"$error":"#DIV/0!"}]
[{"$f":"ResultadosTécnicosEconómicos!B234","v":"Forma legal de la explotación"},0,0,0,{"$error":"#DIV/0!"}]
[{"$f":"ResultadosTécnicosEconómicos!B235","v":"Lugar residencia"},0,0,0,{"$error":"#DIV/0!"}]
[{"$f":"ResultadosTécnicosEconómicos!B236","v":"Nivel de estudios"},0,0,0,{"$error":"#DIV/0!"}]
[{"$f":"ResultadosTécnicosEconómicos!B237","v":"Formación Agraria"},0,0,0,{"$error":"#DIV/0!"}]
[{"$f":"ResultadosTécnicosEconómicos!B238","v":"Edad"},0,0,0,{"$error":"#DIV/0!"}]
[{"$f":"ResultadosTécnicosEconómicos!B239","v":"Nº hijos"},0,0,0,{"$f":"SUM($F239:$GL239)/$B$2","v":{"$error":"#DIV/0!"}}]
[{"$f":"ResultadosTécnicosEconómicos!B240","v":"Nº Familiares dependientes"},0,0,0,{"$error":"#DIV/0!"}]
[{"$f":"ResultadosTécnicosEconómicos!B241","v":"Sucesor"},0,0,0,{"$error":"#DIV/0!"}]
[{"$f":"ResultadosTécnicosEconómicos!B242","v":"Edad sucesor"},0,0,0,{"$error":"#DIV/0!"}]
[{"$f":"ResultadosTécnicosEconómicos!B243","v":"Nivel de estudios sucesor"},0,0,0,{"$error":"#DIV/0!"}]
[{"$f":"ResultadosTécnicosEconómicos!B244","v":"Form. agraria sucesor"},0,0,0,{"$error":"#DIV/0!"}]
[{"$f":"ResultadosTécnicosEconómicos!B245","v":"% Ingresos Agric-Ramad."},0,0,0,{"$error":"#DIV/0!"}]
[{"$f":"ResultadosTécnicosEconómicos!B246","v":"Tipo de explotación"},0,0,0,{"$error":"#DIV/0!"}]
[{"$f":"ResultadosTécnicosEconómicos!B247","v":"Sistema de limpieza"},0,0,0,{"$error":"#DIV/0!"}]
[{"$f":"ResultadosTécnicosEconómicos!B248","v":"Nombre llocs/cubicles/superfície zona repòs"},0,0,0,{"$error":"#DIV/0!"}]
[{"$f":"ResultadosTécnicosEconómicos!B249","v":"M2 zona exercicio"},0,0,0,{"$error":"#DIV/0!"}]
[{"$f":"ResultadosTécnicosEconómicos!B250","v":"Tejado aislado"},0,0,0,{"$error":"#DIV/0!"}]
[{"$f":"ResultadosTécnicosEconómicos!B251","v":"Altura zona reposo"},0,0,0,{"$error":"#DIV/0!"}]
[{"$f":"ResultadosTécnicosEconómicos!B252","v":"Tipo abrevaderos"},0,0,0,{"$error":"#DIV/0!"}]
[{"$f":"ResultadosTécnicosEconómicos!B253","v":"Nombre abeuradors/Nombre caçoletes"},0,0,0,{"$error":"#DIV/0!"}]
[{"$f":"ResultadosTécnicosEconómicos!B254","v":"Tipo de ordeño"},0,0,0,{"$error":"#DIV/0!"}]
[{"$f":"ResultadosTécnicosEconómicos!B255","v":"Línea de leche"},0,0,0,{"$error":"#DIV/0!"}]
[{"$f":"ResultadosTécnicosEconómicos!B256","v":"Número unidades de oreño"},0,0,0,{"$error":"#DIV/0!"}]
[{"$f":"ResultadosTécnicosEconómicos!B257","v":"Tipo pulsador"},0,0,0,{"$error":"#DIV/0!"}]
[{"$f":"ResultadosTécnicosEconómicos!B258","v":"Relación sución/masaje"},0,0,0,{"$error":"#DIV/0!"}]
[{"$f":"ResultadosTécnicosEconómicos!B259","v":"Retiradores de ordeñadoras"},0,0,0,{"$error":"#DIV/0!"}]
[{"$f":"ResultadosTécnicosEconómicos!B260","v":"Presión normal de ordeño"},0,0,0,{"$error":"#DIV/0!"}]
[{"$f":"ResultadosTécnicosEconómicos!B261","v":"Número de ordeñadores"},0,0,0,{"$error":"#DIV/0!"}]
[{"$f":"ResultadosTécnicosEconómicos!B262","v":"Tiempo de un ordeño"},0,0,0,{"$error":"#DIV/0!"}]
[{"$f":"ResultadosTécnicosEconómicos!B263","v":"Inyecta oxitocina?"},0,0,0,{"$error":"#DIV/0!"}]
[{"$f":"ResultadosTécnicosEconómicos!B264","v":"Lotes lactación"},{"$f":"COUNTA($F264:$GL264)","v":0},0,0,{"$error":"#DIV/0!"}]
[{"$f":"ResultadosTécnicosEconómicos!B265","v":"Número de puestos en el comedero  (vacas lactación)"},0,{"$f":"MIN($F265:$GL265)","v":0},{"$f":"MAX($F265:$GL265)","v":0},{"$error":"#DIV/0!"}]
[{"$f":"ResultadosTécnicosEconómicos!B266","v":"Altura rastrillo alimentación"},0,0,0,{"$error":"#DIV/0!"}]
[{"$f":"ResultadosTécnicosEconómicos!B267","v":"Nivel comedero en relació patas"},0,0,0,{"$error":"#DIV/0!"}]
[{"$f":"ResultadosTécnicosEconómicos!B268","v":"Ventiladores"},0,0,0,{"$error":"#DIV/0!"}]
[{"$f":"ResultadosTécnicosEconómicos!B269","v":"Difusores agua"},0,0,0,{"$error":"#DIV/0!"}]
[{"$f":"ResultadosTécnicosEconómicos!B270","v":"Orientación comedero"},0,0,0,{"$error":"#DIV/0!"}]
[{"$f":"ResultadosTécnicosEconómicos!B271","v":"Orientación zona reposo"},0,0,0,{"$f":"SUM($F271:$GL271)/$B$2","v":{"$error":"#DIV/0!"}}]
[{"$f":"ResultadosTécnicosEconómicos!B272","v":"Collares"},0,0,0,{"$error":"#DIV/0!"}]
[{"$f":"ResultadosTécnicosEconómicos!B273","v":"Manejo racionamiento lactación"},0,0,0,{"$error":"#DIV/0!"}]
[{"$f":"ResultadosTécnicosEconómicos!B274","v":"Número distribuciones ración diària"},0,0,0,{"$error":"#DIV/0!"}]
[{"$f":"ResultadosTécnicosEconómicos!B275","v":"Consistencia boñigas"},0,0,0,{"$error":"#DIV/0!"}]
[{"$f":"ResultadosTécnicosEconómicos!B276","v":"Observación boñigas"},0,0,0,{"$error":"#DIV/0!"}]
[{"$f":"ResultadosTécnicosEconómicos!B277","v":"Grado de limpieza instalaciones de ordeño"},0,0,0,{"$error":"#DIV/0!"}]
[{"$f":"ResultadosTécnicosEconómicos!B278","v":"Grado de limpieza ubres vacas"},0,0,0,{"$error":"#DIV/0!"}]
[{"$f":"ResultadosTécnicosEconómicos!B279","v":"Frecuencia control gestación"},0,0,0,{"$error":"#DIV/0!"}]
[{"$f":"ResultadosTécnicosEconómicos!B280","v":"Primera causa reposición"},0,0,0,{"$error":"#DIV/0!"}]
[{"$f":"ResultadosTécnicosEconómicos!B281","v":"Segunda causa reposición"},0,0,0,{"$error":"#DIV/0!"}]
[{"$f":"ResultadosTécnicosEconómicos!B282","v":"Primer tipo semen elegido"},0,0,0,{"$error":"#DIV/0!"}]
[{"$f":"ResultadosTécnicosEconómicos!B283","v":"Segundo tipo semen elegido"},0,0,0,{"$error":"#DIV/0!"}]
[{"$f":"ResultadosTécnicosEconómicos!B284","v":"Primer problema manejo"},0,0,0,{"$error":"#DIV/0!"}]
[{"$f":"ResultadosTécnicosEconómicos!B285","v":"Valoración primer problema manejo"},0,0,0,{"$error":"#DIV/0!"}]
[{"$f":"ResultadosTécnicosEconómicos!B286","v":"Segundo problema manejo"},0,0,0,{"$error":"#DIV/0!"}]
[{"$f":"ResultadosTécnicosEconómicos!B287","v":"Valoración segundo problema manejo"},0,0,0,{"$error":"#DIV/0!"}]
[{"$f":"ResultadosTécnicosEconómicos!B288","v":"Sigue programa de mejora y selección genética?"},0,0,0,{"$error":"#DIV/0!"}]
[{"$f":"ResultadosTécnicosEconómicos!B289","v":"Grado vigilancia celos"},0,0,0,{"$error":"#DIV/0!"}]
[{"$f":"ResultadosTécnicosEconómicos!B290","v":"Edad media del primer parto en mesas"},0,0,0,{"$error":"#DIV/0!"}]
[{"$f":"ResultadosTécnicosEconómicos!B291","v":"Número medio de partes por vaca"},0,0,0,{"$error":"#DIV/0!"}]
[{"$f":"ResultadosTécnicosEconómicos!B292","v":"Intervalo medio entre partes, días"},0,0,0,{"$error":"#DIV/0!"}]
[{"$f":"ResultadosTécnicosEconómicos!B293","v":"Número medio de inseminaciones / vaca"},0,0,0,{"$error":"#DIV/0!"}]

{"sheet":"ResultadosEconómicosÚltimaExpl","index":3,"n_rows":90,"n_cols":4,"rows_kept":90,"cut":false,"hidden":false,"merged":[[0,1,0,5],[62,3,62,4],[63,3,63,4],[55,3,55,4],[56,3,56,4],[57,3,57,4],[61,3,61,4],[51,3,51,4],[52,3,52,4],[53,3,53,4],[43,3,43,4],[44,3,44,4],[45,3,45,4],[46,3,46,4],[54,3,54,4],[47,3,47,4],[48,3,48,4],[49,3,49,4],[50,3,50,4],[37,3,37,4],[38,3,38,4],[39,3,39,4],[40,3,40,4],[41,3,41,4],[42,3,42,4],[36,3,36,4],[28,3,28,4],[29,3,29,4],[22,3,22,4],[23,3,23,4],[24,3,24,4],[25,3,25,4],[30,3,30,4],[31,3,31,4],[32,3,32,4],[33,3,33,4],[34,3,34,4],[35,3,35,4],[14,3,14,4],[20,3,20,4],[21,3,21,4],[26,3,26,4],[27,3,27,4],[15,3,15,4],[16,3,16,4],[17,3,17,4],[18,3,18,4],[19,3,19,4],[58,3,58,4],[59,3,59,4],[60,3,60,4],[64,3,64,4],[65,3,65,4],[66,3,66,4],[67,3,67,4],[68,3,68,4],[69,3,69,4],[70,3,70,4],[71,3,71,4],[72,3,72,4],[73,3,73,4],[74,3,74,4],[75,3,75,4],[76,3,76,4],[77,3,77,4],[78,3,78,4],[79,3,79,4],[80,3,80,4],[86,3,86,4],[87,3,87,4],[88,3,88,4],[89,3,89,4],[81,3,81,4],[82,3,82,4],[83,3,83,4],[84,3,84,4],[85,3,85,4]]}
[null,"Grup de Remugants"]
[null,"Año",{"$f":"EntradaDatosExplotación!E16","v":2021}]
[null,"Nombre o número explotación",{"$f":"ResultadosTécnicosEconómicos!C4","v":"dddd"}]
[null,"Has totales",{"$f":"ST","v":75}]
[null,"Has de leche",{"$f":"Sllet","v":75}]
[null,"% regadío",{"$f":"ResultadosTécnicosEconómicos!C13","v":0.33333333333333331}]
[null,"Nº vacas media",{"$f":"VM","v":116}]
[null,"% Primer parto",{"$f":"ResultadosTécnicosEconómicos!C17","v":0.34913793103448276}]
[null,"UGM media",{"$f":"UBM","v":163.5}]
[null,"UTA totales",{"$f":"UTA","v":3}]
[null,"UTA familiar",{"$f":"UTAf","v":2}]
[null,"Vacas media/ha",{"$f":"VM_ha","v":1.5466666666666666}]
[null,"UGM vacuno leche/ha",{"$f":"UBM_ha","v":2.1800000000000002}]
[null,"Consumo de pienso de vaca por kg de leche",{"$f":"ResultadosTécnicosEconómicos!C46","v":0.44118314636378841}]
[null,"€ litro leche vendido",{"$f":"Preu","v":0.34134217507215092},"cts d'€/litre"]
[null,{"$f":"ResultadosTécnicosEconómicos!B124","v":"Ingresos totales"},{"$f":"ResultadosTécnicosEconómicos!C124","v":0.42088239406040695},{"$f":"C16*100","v":42.088239406040692}]
[null,{"$f":"ResultadosTécnicosEconómicos!B125","v":"Ingresos por leche vendida"},{"$f":"ResultadosTécnicosEconómicos!C125","v":0.33654559477268836},{"$f":"C17*100","v":33.654559477268833}]
[null,{"$f":"ResultadosTécnicosEconómicos!B126","v":"Ingresos por venta neta de terneros"},{"$f":"ResultadosTécnicosEconómicos!C126","v":5.0039533185886114E-3},0.50039533185886109]
[null,{"$f":"ResultadosTécnicosEconómicos!B127","v":"Ingresos por venta neta resto animales"},{"$f":"ResultadosTécnicosEconómicos!C127","v":1.5215663546688744E-2},1.5215663546688745]
[null,{"$f":"ResultadosTécnicosEconómicos!B128","v":"Venta estiércol"},{"$f":"ResultadosTécnicosEconómicos!C128","v":0},0]
[null,{"$f":"ResultadosTécnicosEconómicos!B129","v":"Subvenciones"},{"$f":"ResultadosTécnicosEconómicos!C129","v":6.4056318908199933E-2},6.4056318908199934]
[null,{"$f":"ResultadosTécnicosEconómicos!B130","v":"Indemnizaciones"},{"$f":"ResultadosTécnicosEconómicos!C130","v":0},0]
[null,{"$f":"ResultadosTécnicosEconómicos!B131","v":""},{"$f":"ResultadosTécnicosEconómicos!C131","v":0},0]
[null,{"$f":"ResultadosTécnicosEconómicos!B132","v":""},{"$f":"ResultadosTécnicosEconómicos!C132","v":0},0]
[null,{"$f":"ResultadosTécnicosEconómicos!B133","v":"Ingresos por variación de inventario animal"},{"$f":"ResultadosTécnicosEconómicos!C133","v":6.0863514241231245E-5},6.0863514241231249E-3]
[null,{"$f":"ResultadosTécnicosEconómicos!B134","v":"Costes Variables"},{"$f":"ResultadosTécnicosEconómicos!C134","v":0.23758022635468132},23.75802263546813]
[null,{"$f":"ResultadosTécnicosEconómicos!B135","v":"Productos comprados para la alimentación"},{"$f":"ResultadosTécnicosEconómicos!C135","v":0.14935803774661818},14.935803774661819]
[null,{"$f":"ResultadosTécnicosEconómicos!B136","v":"Forrajes comprados"},{"$f":"ResultadosTécnicosEconómicos!C136","v":0},0]
[null,{"$f":"ResultadosTécnicosEconómicos!B137","v":"Concentrados"},{"$f":"ResultadosTécnicosEconómicos!C137","v":0.14935803774661818},14.935803774661819]
[null,{"$f":"ResultadosTécnicosEconómicos!B138","v":"Costes parcelas"},{"$f":"ResultadosTécnicosEconómicos!C138","v":1.2334940397247435E-2},1.2334940397247436]
[null,{"$f":"ResultadosTécnicosEconómicos!B139","v":"Semillas"},{"$f":"ResultadosTécnicosEconómicos!C139","v":3.9093385301473531E-3},0.39093385301473532]
[null,{"$f":"ResultadosTécnicosEconómicos!B140","v":"Abonos"},{"$f":"ResultadosTécnicosEconómicos!C140","v":3.1274708241178823E-3},0.31274708241178822]
[null,{"$f":"ResultadosTécnicosEconómicos!B141","v":"Tratamientos"},{"$f":"ResultadosTécnicosEconómicos!C141","v":2.0524027283273603E-3},0.20524027283273602]
[null,{"$f":"ResultadosTécnicosEconómicos!B142","v":"Plásticos y conservantes"},{"$f":"ResultadosTécnicosEconómicos!C142","v":1.2910590495811632E-3},0.12910590495811633]
[null,{"$f":"ResultadosTécnicosEconómicos!B143","v":"Otros (agua riego, etc.)"},{"$f":"ResultadosTécnicosEconómicos!C143","v":1.9546692650736766E-3},0.19546692650736766]
[null,{"$f":"ResultadosTécnicosEconómicos!B144","v":"Maquinaria"},{"$f":"ResultadosTécnicosEconómicos!C144","v":5.0695256310894055E-2},5.0695256310894052]
[null,{"$f":"ResultadosTécnicosEconómicos!B145","v":"Carburantes y lubricantes"},{"$f":"ResultadosTécnicosEconómicos!C145","v":1.9922125976479466E-2},1.9922125976479466]
[null,{"$f":"ResultadosTécnicosEconómicos!B146","v":"Alquiler maquinaria"},{"$f":"ResultadosTécnicosEconómicos!C146","v":3.0773130334414592E-2},3.0773130334414591]
[null,{"$f":"ResultadosTécnicosEconómicos!B147","v":"Veterinario"},{"$f":"ResultadosTécnicosEconómicos!C147","v":8.9893675765326322E-3},0.8989367576532632]
[null,{"$f":"ResultadosTécnicosEconómicos!B148","v":"Medicinas y productos veterinarios"},{"$f":"ResultadosTécnicosEconómicos!C148","v":5.890649937303984E-3},0.58906499373039845]
[null,{"$f":"ResultadosTécnicosEconómicos!B149","v":"Lecho / camas"},{"$f":"ResultadosTécnicosEconómicos!C149","v":1.1150596516192969E-2},1.115059651619297]
[null,{"$f":"ResultadosTécnicosEconómicos!B150","v":"Material diverso"},{"$f":"ResultadosTécnicosEconómicos!C150","v":4.1284862748010888E-3},0.41284862748010887]
[null,{"$f":"ResultadosTécnicosEconómicos!B151","v":"Luz"},{"$f":"ResultadosTécnicosEconómicos!C151","v":6.8020731222225373E-3},0.68020731222225372]
[null,{"$f":"ResultadosTécnicosEconómicos!B152","v":"Teléfono"},{"$f":"ResultadosTécnicosEconómicos!C152","v":0},0]
[null,{"$f":"ResultadosTécnicosEconómicos!B153","v":"Detergentes y desinfectantes"},{"$f":"ResultadosTécnicosEconómicos!C153","v":2.9585092128449138E-3},0.29585092128449136]
[null,{"$f":"ResultadosTécnicosEconómicos!B154","v":"Consumo agua"},{"$f":"ResultadosTécnicosEconómicos!C154","v":4.3874994991160007E-3},0.43874994991160005]
[null,{"$f":"ResultadosTécnicosEconómicos!B155","v":"Inseminaciones"},{"$f":"ResultadosTécnicosEconómicos!C155","v":3.094632380464645E-3},0.30946323804646447]
[null,{"$f":"ResultadosTécnicosEconómicos!B156","v":"Sueldos eventuales (incluida SS)"},{"$f":"ResultadosTécnicosEconómicos!C156","v":0},0]
[null,{"$f":"ResultadosTécnicosEconómicos!B157","v":""},{"$f":"ResultadosTécnicosEconómicos!C157","v":0},0]
[null,{"$f":"ResultadosTécnicosEconómicos!B158","v":""},{"$f":"ResultadosTécnicosEconómicos!C158","v":0},0]
[null,{"$f":"ResultadosTécnicosEconómicos!B159","v":""},{"$f":"ResultadosTécnicosEconómicos!C159","v":0},0]
[null,{"$f":"ResultadosTécnicosEconómicos!B160","v":""},{"$f":"ResultadosTécnicosEconómicos!C160","v":0},0]
[null,{"$f":"ResultadosTécnicosEconómicos!B161","v":""},{"$f":"ResultadosTécnicosEconómicos!C161","v":0},0]
[null,{"$f":"ResultadosTécnicosEconómicos!B162","v":""},{"$f":"ResultadosTécnicosEconómicos!C162","v":0},0]
[null,{"$f":"ResultadosTécnicosEconómicos!B163","v":""},{"$f":"ResultadosTécnicosEconómicos!C163","v":0},0]
[null,{"$f":"ResultadosTécnicosEconómicos!B164","v":"Variación inventario productos alimentarios"},{"$f":"ResultadosTécnicosEconómicos!C164","v":-2.2209822619557194E-2},-2.2209822619557196]
[null,{"$f":"ResultadosTécnicosEconómicos!B165","v":"Costes fijos"},{"$f":"ResultadosTécnicosEconómicos!C165","v":0.10735761878769459},10.735761878769459]
[null,{"$f":"ResultadosTécnicosEconómicos!B166","v":"Amortización anual maquinaria"},{"$f":"ResultadosTécnicosEconómicos!C166","v":5.2776070156989258E-3},0.52776070156989263]
[null,{"$f":"ResultadosTécnicosEconómicos!B167","v":"Amortización anual edificaciones"},{"$f":"ResultadosTécnicosEconómicos!C167","v":1.1763763974663577E-2},{"$f":"C59*100","v":1.1763763974663577}]
[null,{"$f":"ResultadosTécnicosEconómicos!B168","v":"Amortización instalaciones"},{"$f":"ResultadosTécnicosEconómicos!C168","v":5.9959693742419554E-3},0.59959693742419551]
[null,{"$f":"ResultadosTécnicosEconómicos!B169","v":"Coservación y reparación maquinaria"},{"$f":"ResultadosTécnicosEconómicos!C169","v":1.3262079123057182E-2},1.3262079123057182]
[null,{"$f":"ResultadosTécnicosEconómicos!B170","v":"Conservación y reparación edificios"},{"$f":"ResultadosTécnicosEconómicos!C170","v":1.9470656016325398E-3},{"$f":"C62*100","v":0.19470656016325397}]
[null,{"$f":"ResultadosTécnicosEconómicos!B171","v":"Contribuciones / impuestos"},{"$f":"ResultadosTécnicosEconómicos!C171","v":4.0739216822665566E-4},4.0739216822665569E-2]
[null,{"$f":"ResultadosTécnicosEconómicos!B172","v":"Intereses prestamos y comisiones"},{"$f":"ResultadosTécnicosEconómicos!C172","v":8.7669848542451991E-3},0.87669848542451989]
[null,{"$f":"ResultadosTécnicosEconómicos!B173","v":"Asesorías y Servicios Técnicos"},{"$f":"ResultadosTécnicosEconómicos!C173","v":0},{"$f":"C65*100","v":0}]
[null,{"$f":"ResultadosTécnicosEconómicos!B174","v":"Sueldos fijos"},{"$f":"ResultadosTécnicosEconómicos!C174","v":2.6388035078494632E-2},2.6388035078494632]
[null,{"$f":"ResultadosTécnicosEconómicos!B175","v":"Seguridad social familiar"},{"$f":"ResultadosTécnicosEconómicos!C175","v":8.4037682114092103E-3},0.84037682114092105]
[null,{"$f":"ResultadosTécnicosEconómicos!B176","v":"Arrendamiento suelo agrícola"},{"$f":"ResultadosTécnicosEconómicos!C176","v":9.1136454484060155E-3},0.91136454484060159]
[null,{"$f":"ResultadosTécnicosEconómicos!B177","v":"Arrendamiento edificios"},{"$f":"ResultadosTécnicosEconómicos!C177","v":4.1048054566547205E-3},0.41048054566547204]
[null,{"$f":"ResultadosTécnicosEconómicos!B178","v":"Otros arrendamientos"},{"$f":"ResultadosTécnicosEconómicos!C178","v":1.2314416369964161E-3},0.12314416369964161]
[null,{"$f":"ResultadosTécnicosEconómicos!B179","v":"Seguros vacas"},{"$f":"ResultadosTécnicosEconómicos!C179","v":5.6265447995535543E-3},0.56265447995535545]
[null,{"$f":"ResultadosTécnicosEconómicos!B180","v":"Seguros maquinaria"},{"$f":"ResultadosTécnicosEconómicos!C180","v":7.5836280811695958E-4},7.5836280811695952E-2]
[null,{"$f":"ResultadosTécnicosEconómicos!B181","v":"Seguros edificios"},{"$f":"ResultadosTécnicosEconómicos!C181","v":1.133434520045622E-3},{"$f":"C73*100","v":0.1133434520045622}]
[null,{"$f":"ResultadosTécnicosEconómicos!B182","v":"Seguros Cosechas"},{"$f":"ResultadosTécnicosEconómicos!C182","v":0},0]
[null,{"$f":"ResultadosTécnicosEconómicos!B183","v":"Control lechero"},{"$f":"ResultadosTécnicosEconómicos!C183","v":1.3471091907571509E-3},0.13471091907571509]
[null,{"$f":"ResultadosTécnicosEconómicos!B184","v":"Administración y gestoría"},{"$f":"ResultadosTécnicosEconómicos!C184","v":1.5073627504542163E-3},0.15073627504542164]
[null,{"$f":"ResultadosTécnicosEconómicos!B185","v":"Seguros varios"},{"$f":"ResultadosTécnicosEconómicos!C185","v":3.2224677504004629E-4},3.222467750400463E-2]
[null,{"$f":"ResultadosTécnicosEconómicos!B186","v":""},{"$f":"ResultadosTécnicosEconómicos!C186","v":0},0]
[null,{"$f":"ResultadosTécnicosEconómicos!B187","v":"Costes Oportunidad"},{"$f":"ResultadosTécnicosEconómicos!C187","v":7.5716169969790595E-2},7.5716169969790599]
[null,{"$f":"ResultadosTécnicosEconómicos!B188","v":"Renta de la tierra"},{"$f":"ResultadosTécnicosEconómicos!C188","v":1.2509883296471529E-2},1.2509883296471529]
[null,{"$f":"ResultadosTécnicosEconómicos!B189","v":"Mano de obra familiar"},{"$f":"ResultadosTécnicosEconómicos!C189","v":6.1575991188350956E-2},6.1575991188350958]
[null,{"$f":"ResultadosTécnicosEconómicos!B190","v":"Interés capital propio"},{"$f":"ResultadosTécnicosEconómicos!C190","v":1.6302954849681044E-3},0.16302954849681045]
[null,{"$f":"ResultadosTécnicosEconómicos!B191","v":"Costes totales (sin incluir costes de oportunidad)"},{"$f":"ResultadosTécnicosEconómicos!C191","v":0.34493784514237591},34.493784514237589]
[null,{"$f":"ResultadosTécnicosEconómicos!B192","v":"Costes totales (Incluyendo costes de oportunidad)"},{"$f":"ResultadosTécnicosEconómicos!C192","v":0.42065401511216655},42.065401511216656]
[null,{"$f":"ResultadosTécnicosEconómicos!B193","v":"Margen bruto"},{"$f":"ResultadosTécnicosEconómicos!C193","v":0.1833021677057256},18.330216770572562]
[null,{"$f":"ResultadosTécnicosEconómicos!B194","v":"Margen neto"},{"$f":"ResultadosTécnicosEconómicos!C194","v":7.5944548918031027E-2},7.5944548918031023]
[null,{"$f":"ResultadosTécnicosEconómicos!B195","v":"Beneficio"},{"$f":"ResultadosTécnicosEconómicos!C195","v":2.2837894824043114E-4},2.2837894824043112E-2]
[null,{"$f":"ResultadosTécnicosEconómicos!B196","v":"RUT (Renta Unitaria del trabajo)"},{"$f":"ResultadosTécnicosEconómicos!C196","v":3.6912117402644953E-2},3.6912117402644955]
[null,{"$f":"ResultadosTécnicosEconómicos!B197","v":"Llindar rendibilitat MN"},{"$f":"ResultadosTécnicosEconómicos!C197","v":0.26060104585465732},{"$f":"C89*100","v":26.060104585465734}]
[null,{"$f":"ResultadosTécnicosEconómicos!B198","v":"Llindar rendibilitat B"},{"$f":"ResultadosTécnicosEconómicos!C198","v":0.33631721582444796},33.631721582444797]

{"sheet":"Criterios","index":4,"n_rows":292,"n_cols":21,"rows_kept":292,"cut":false,"hidden":false,"merged":[[18,13,18,19],[17,13,17,20],[35,13,35,15]]}
[]
["Leche Terneros"]
["Lec_Mam",6.5,null,"Litros/dia de leche tomada por los terneros "]
["Dias_Mam",56,null,"Dias que estan mamando los terneros"]
[]
["Leche Homogeneizada"]
["tgr",3.8,null,"% en grasa de referencia UE"]
[]
["M.O."]
["Hores_UTA",1920]
["Preu_h_f",{"$f":"RendaR/Hores_UTA","v":16.407291666666666},null,"€ MO Familiar"]
[]
[]
["Amortizaciones"]
["AA_Edif",20,null,"Años de amortizacion de los edificios"]
["AA_Maq",10,null,"Años de amortizacion de la maquinaria"]
["AA_Frio",10,null,"Años de amortizacion del equipo de frio"]
["AA_Cuota",10,null,"Años de amortizacion de compra de cuota",null,null,null,null,null,null,null,null,null,"Para el cálculo de tu hipoteca te interesa la Media Mensual:"]
["A_Enc",{"$f":"EntradaDatosExplotación!E16","v":2021},null,"Año realizacion encuesta",null,null,null,null,null,null,null,null,null,"Euribor a un año (Media Mensual), en %:",null,null,null,null,null,null,"Gráfico de evolución del Euribor Mensual:"]
["A_Edif",{"$f":"A_Enc-AA_Edif","v":2001},null,"Año final de amortizacion de edificio",null,null,null,null,null,null,null,null,null,null,{"$f":"A_Enc","v":2021}]
["A_Maq",{"$f":"A_Enc-AA_Maq","v":2011},null,"Año final de amortizacion de maquinaria",null,null,null,null,null,null,null,null,null,"Enero ",-5.0499999999999998E-3]
["A_Frio",{"$f":"A_Enc-AA_Frio","v":2011},null,"Año final de amortizacion de equipo de frio",null,null,null,null,null,null,null,null,null," Febrero ",-5.0099999999999997E-3]
[null,null,null,null,null,null,null,null,null,null,null,null,null," Marzo ",-4.8700000000000002E-3]
["Precios de Ganado",null,null,null,null,null,null,null,null,null,null,null,null," Abril ",-4.8399999999999997E-3]
["Precio ternera preñada",{"$f":"EntradaDatosExplotación!E20","v":1457.5},null,null,null,null,null,null,null,null,null,null,null," Mayo ",-4.81E-3]
["Precio vaca primer",{"$f":"EntradaDatosExplotación!E21","v":1325},null,null,null,null,null,null,null,null,null,null,null," Junio ",-4.8399999999999997E-3]
[null,null,null,null,null,null,null,null,null,null,null,null,null," Julio ",-4.9100000000000003E-3]
[null,null,null,null,null,null,null,null,null,null,null,null,null," Agosto ",-4.9800000000000001E-3]
[null,null,null,null,null,null,null,null,null,null,null,null,null," Septiembre ",-4.9199999999999999E-3]
[null,null,null,null,null,null,null,null,null,null,null,null,null," Octubre ",-4.7699999999999999E-3]
[null,null,null,null,null,null,null,null,null,null,null,null,null," Noviembre ",-4.8700000000000002E-3]
["Tipo de Interes",null,null,null,null,null,null,null,null,null,null,null,null," Diciembre ",-5.0200000000000002E-3]
[null,null,null,null,null,null,null,null,null,null,null,null,null,"mitjana",{"$f":"AVERAGE(O21:O32)","v":-4.9074999999999995E-3}]
["Int_Cap_Cir",{"$f":"EntradaDatosExplotación!E19","v":5.3933333333333324E-3}]
["Int_Cuo",{"$f":"EntradaDatosExplotación!E19","v":5.3933333333333324E-3}]
["Int_Maq",{"$f":"EntradaDatosExplotación!E19","v":5.3933333333333324E-3},null,null,null,null,null,null,null,null,null,null,null,"http://www.euribordiario.es/"]
["Int_Edif",{"$f":"EntradaDatosExplotación!E18","v":5.3933333333333324E-3}]
["Int_Frio",{"$f":"EntradaDatosExplotación!E19","v":5.3933333333333324E-3}]
["Int_Gan",{"$f":"EntradaDatosExplotación!E19","v":5.3933333333333324E-3}]
[null,null,null,null,null,null,null,null,null,null,null,null,null,"Toros, vacas y otros animales de la especie bovina de más de dos años y equinos de más de seis meses: 1,0 UGM"]
["sistema limpieza",null,null,null,null,null,null,null,null,null,null,null,null,"Animales de la especie bovina de seis meses a dos años: 0,6 UGM"]
["pala",null,null,null,null,null,null,null,null,null,null,null,null,"Animales de la especie bovina de menos de seis meses: 0,4 UGM"]
["arrastrador"]
["agua"]
["slats"]
["otros"]
["tipo estabulación"]
["trabada"]
["Libre_cubículos"]
["Libre_clásica"]
["bebederos"]
["Pica_clásica"]
["Pica_boya"]
["reversible"]
["cazoleta"]
["ordeño"]
["directo"]
["Paral_Girona"]
["Espina_pescado"]
["Espina_rápida"]
["Paral_rápida"]
["rotativa"]
["Línea de leche"]
["baja"]
["alta"]
["media"]
["pulsador"]
["neumático"]
["electrónico"]
["Succión / Masaje"]
["50_50"]
["60_40"]
["70_30"]
["Retiradors ordeñadoras"]
["si"]
["no"]
["presión ordeño"]
["42-44 kpa"]
["> 44 kpa"]
["Número de ordeñadores"]
["uno"]
["dos"]
["tres"]
["> 3"]
["Tiempo de un ordeño"]
["<= 90 minutos"]
["> 90 minutos"]
["inyecta oxitocina"]
["no"]
["puntualmente"]
["<50%"]
["> 50%"]
["Grado limpieza instalaciones ordeñar"]
["bueno"]
["regular"]
["deficiente"]
["Grado limpieza ubres vacas"]
["bueno"]
["regular"]
["deficiente"]
["Frecuencia control gestación"]
["no"]
["1 por mes"]
["2 por mes"]
["3 por mes"]
["indeterminado"]
["Primera causa reposición"]
["infertilidad"]
["producción"]
["puntos"]
["ubres_mamitis"]
["edad"]
["patas"]
["Segunda causa reposición"]
["infertilidad "]
["producción"]
["puntos"]
["ubres_mamitis"]
["edad"]
["patas"]
["Primera causa elección"]
["No sabe"]
["producción"]
["ubres_mamitis"]
["puntos"]
["producción_sólidos "]
["por programa"]
["Segunda causa elección"]
["No sabe"]
["producción"]
["ubres_mamitis"]
["puntos"]
["producción_sólidos"]
["por programa"]
["Primer tipo semen elegido"]
["americano"]
["canadiense"]
["país"]
["no probado"]
["francés"]
["alemán"]
["italiano"]
["holandés"]
["otros"]
["no insemina"]
["Segundo tipo semen elegido"]
["americano"]
["canadiense"]
["país"]
["no probado"]
["francés"]
["alemán"]
["italiano"]
["holandés"]
["otros"]
["carne"]
["Primer problema manejo"]
["mamitis"]
["retenciones placenta"]
["torsiones"]
["infertilidad"]
["cojeras"]
["fiebres de la leche"]
["otros"]
["no indica"]
["Valoración primer problema manejo"]
["no valora"]
["preocupa"]
["normal"]
["Segundo problema manejo"]
["mamitis"]
["retenciones placenta"]
["torsiones"]
["infertilidad"]
["cojeras"]
["fiebres de la leche"]
["otros"]
["no indica"]
["Valoración segundo problema manejo"]
["no valora"]
["preocupa"]
["normal"]
["¿Qué problema no tiene"]
["mamitis"]
["retenciones placenta"]
["torsiones"]
["infertilidad"]
["cojeras"]
["fiebres de la leche"]
["otros"]
["no indica"]
["lotes lactación"]
["no"]
["dos"]
["tres"]
["> tres"]
["Altura rastrillo alim"]
["suficiente"]
["insuficiente"]
["ventiladores"]
["sí"]
["no"]
["difusores agua"]
["sí"]
["no"]
["Collares"]
["sí"]
["no"]
["nivel comedero"]
["nivel patas"]
["<10 cm"]
["> 10 cm"]
["orientación comedero"]
["correcta"]
["incorrecta"]
["Orientación zona reposo"]
["correcta"]
["incorrecta"]
["manejo racionamiento"]
["pastoreo_racbase"]
["pastoreo_unifeed"]
["racbase"]
["unifeed"]
["unifeed_comunitario"]
["Número distribuciones ración diaria"]
["1_dia"]
["2_dia"]
["> 2_dia"]
["consistencia Boñigas"]
["líquida"]
["líquida_blanda"]
["blanda"]
["semidura"]
["dura"]
["observación Boñigas"]
["granos_fibras"]
["fibras"]
["granos"]
["pliegues_intestino"]
["programa selección"]
["No sabe"]
["No hace"]
["sí"]
["vigilancia celos"]
["Al ordeñar"]
["Dedica tiempo"]
["Normal"]
["control reproducción"]
["libreta"]
["rueda_SEA"]
["programa_inform"]
["rueda_prog_infor"]
["otros"]
["aislamiento tejado"]
["sí"]
["no"]
[]
["leche natural"]
["Las terneras Sí consumen leche natural"]
["Las terneras No consumen leche natural"]
[]
[]
[]
[]
["Ind"]
["CB"]
["SL"]
["SA"]
["Coop"]
["Sat"]
["Otra"]
[]
["Pueblo"]
["Expl"]
[]
["NS"]
["Ninguno"]
["Primario"]
["Bachillerato"]
["F profesional"]
["Grado medio"]
["Grado superior"]
[]
["Sí"]
["No"]
[]
[]
["No"]
["NS"]
["Hijo"]
["Hija"]
["Otro/a"]